{"text_format":"1","workbook":"xlsx","n_sheets":5,"sheets":["Notes","Summary","ICB","Orgs","BS"],"not_rendered":{"charts":0,"images":0,"macros":1,"external_links":0,"defined_names":4,"comments":0,"pivot_tables":0},"unopened":[],"bounds":{"document_bytes":16777216,"sheet_cells":100000,"rows_first":2000,"rows_last":500,"rows_between":2000,"halvings":0,"cell_chars":16384,"cell_head_chars":4096},"cells_cut":0,"cells_raw":0,"read":"whole","date_system":"1900"}

{"sheet":"Notes","index":0,"n_rows":2,"n_cols":10,"rows_kept":2,"cut":false,"hidden":false,"merged":[]}
[]
["Outpatients Friends and Family Test (FFT) Data - August 2022",null,null,null,null,null,null,null,null,"  Show data for:"]

{"sheet":"Summary","index":1,"n_rows":10,"n_cols":10,"rows_kept":10,"cut":false,"hidden":false,"merged":[[5,1,6,1],[5,4,5,5],[5,6,5,7],[5,8,5,9]]}
[]
[]
[]
[]
[]
[null,"FFT","Number of organisations submitting","Total responses to date","Responses",null,"Percentage Positive",null,"Percentage Negative"]
[null,null,"2022-08-01","2022-08-01","2022-08-01","2022-07-27","2022-08-01","2022-07-27","2022-08-01","2022-07-27"]
[null,"Total",228,25360761,329675,316534,0.93371653901569729,0.93333101657325912,3.2814135133085613E-2,3.3092811514718795E-2]
[null,"NHS",135,23872144,313668,300524,0.93186614123180578,0.9312460411422735,3.3788851458717344E-2,3.4187949154172427E-2]
[null,"IS",93,1488617,16007,16010,0.97351158867995247,0.97613991255465338,1.1994752295870556E-2,1.0680824484697064E-2]

{"sheet":"ICB","index":2,"n_rows":55,"n_cols":12,"rows_kept":55,"cut":false,"hidden":false,"merged":[[7,5,8,5],[7,6,7,11],[4,1,5,1],[4,4,5,4],[7,0,8,0],[7,1,8,1],[7,2,8,2],[7,3,8,3],[7,4,8,4]]}
[]
[]
[]
[]
[]
[]
[]
["ICB Code","ICB Name","Total Responses","Total Eligible","Percentage Positive","Percentage Negative","Breakdown of Responses"]
[null,null,null,null,null,null,"Very Good","Good","Neither Good nor Poor","Poor","Very Poor","Don't Know"]
[null,"England (including Independent Sector Providers)",329675,4643636,0.93371653901569729,3.2814135133085613E-2,264968,42855,8617,4932,5886,2417]
[null,"England (excluding Independent Sector Providers)",313668,4449689,0.93168573141028088,3.3876582883813462E-2,251091,41149,8431,4840,5786,2371]
[null,"Selection (excluding suppressed data)",{"$f":"SUBTOTAL(9, C13:C55)","v":329675},{"$f":"SUBTOTAL(9, D13:D55)","v":4643636},{"$f":"IFERROR((G12+H12)/C12, \"-\")","v":0.93371653901569729},{"$f":"IFERROR((J12+K12)/C12, \"-\")","v":3.2814135133085613E-2},{"$f":"SUBTOTAL(9, G13:G55)","v":264968},42855,8617,4932,5886,2417]
["QE1","LANCASHIRE AND SOUTH CUMBRIA ICB",7868,136053,0.92386883579054402,3.6603965429588207E-2,6136,1133,244,138,150,67]
["QF7","SOUTH YORKSHIRE ICB",7457,205145,0.92932814804881314,3.741450985651066E-2,6096,834,203,114,165,45]
["QGH","HEREFORDSHIRE AND WORCESTERSHIRE ICB",5334,43106,0.94900637420322465,3.0746156730408699E-2,4650,412,99,72,92,9]
["QH8","MID AND SOUTH ESSEX ICB",6223,25811,0.92238470191226096,3.5513417965611443E-2,4783,957,211,92,129,51]
["QHG","BEDFORDSHIRE, LUTON AND MILTON KEYNES ICB",3847,48457,0.92747595528983628,2.9893423446841694E-2,2921,647,149,67,48,15]
["QHL","BIRMINGHAM AND SOLIHULL ICB",5287,205889,0.909967845659164,4.9177227160960846E-2,3954,857,176,111,149,40]
["QHM","NORTH EAST AND NORTH CUMBRIA ICB",5711,272200,0.96042724566625814,1.8735773069514971E-2,4797,688,103,52,55,16]
["QJ2","DERBY AND DERBYSHIRE ICB",6733,83510,0.93390761918906873,3.5348284568542998E-2,5328,960,198,125,113,9]
["QJG","SUFFOLK AND NORTH EAST ESSEX ICB",9211,73386,0.93605471718597333,2.8009988057757031E-2,7213,1409,261,139,119,70]
["QJK","DEVON ICB",475,87535,0.97052631578947368,1.0526315789473684E-2,431,30,5,4,1,4]
["QJM","LINCOLNSHIRE ICB",3187,40611,0.91277063068716657,3.9849388139315968E-2,2398,511,108,58,69,43]
["QK1","LEICESTER, LEICESTERSHIRE AND RUTLAND ICB",11034,62425,0.93556280587275698,3.3532717056371217E-2,9065,1258,302,159,211,39]
["QKK","SOUTH EAST LONDON ICB",16310,199580,0.91011649294911101,5.0521152667075415E-2,12048,2796,584,379,445,58]
["QKS","KENT AND MEDWAY ICB",14758,105840,0.93779644938338524,3.4760807697519991E-2,11992,1848,367,281,232,38]
["QM7","HERTFORDSHIRE AND WEST ESSEX ICB",2683,76478,0.92694744688781217,3.9135296310100633E-2,2049,438,72,58,47,19]
["QMF","NORTH EAST LONDON ICB",12303,176556,0.8776721124928879,6.3074046980411289E-2,8522,2276,465,298,478,264]
["QMJ","NORTH CENTRAL LONDON ICB",22878,247236,0.91384736428009439,3.5842293906810034E-2,17539,3368,626,319,501,525]
["QMM","NORFOLK AND WAVENEY ICB",5699,80013,0.95683453237410077,2.1582733812949641E-2,4953,500,117,67,56,6]
["QNC","STAFFORDSHIRE AND STOKE-ON-TRENT ICB",7881,50524,0.95926912828321276,1.9540667427991373E-2,6796,764,127,70,84,40]
["QNQ","FRIMLEY ICB",675,41791,0.94518518518518524,1.6296296296296295E-2,435,203,25,5,6,1]
["QNX","SUSSEX ICB",3179,69420,0.94778232148474362,2.1390374331550801E-2,2661,352,82,41,27,16]
["QOC","SHROPSHIRE, TELFORD AND WREKIN ICB",2603,32554,0.9761813292354975,1.0372646945831733E-2,2345,196,29,16,11,6]
["QOP","GREATER MANCHESTER ICB",11208,229287,0.93156673804425405,3.4885795860099926E-2,9076,1365,305,183,208,71]
["QOQ","HUMBER AND NORTH YORKSHIRE ICB",8709,126636,0.93661729245607994,2.7787346423240326E-2,6930,1227,254,110,132,56]
["QOX","BATH AND NORTH EAST SOMERSET, SWINDON AND WILTSHIRE ICB",1270,70140,0.97480314960629921,1.0236220472440945E-2,1140,98,13,7,6,6]
["QPM","NORTHAMPTONSHIRE ICB",3716,62851,0.93756727664155004,2.9601722282023683E-2,2980,504,106,45,65,16]
["QR1","GLOUCESTERSHIRE ICB",3970,45295,0.94256926952141062,2.9722921914357683E-2,3113,629,102,68,50,8]
["QRL","HAMPSHIRE AND ISLE OF WIGHT ICB",7914,142861,0.94212787465251457,2.8051554207733132E-2,6521,935,200,91,131,36]
["QRV","NORTH WEST LONDON ICB",14500,216338,0.94227586206896552,3.0827586206896553E-2,11832,1831,367,208,239,23]
["QSL","SOMERSET ICB",1928,11337,0.97302904564315351,1.6597510373443983E-2,1747,129,19,11,21,1]
["QT1","NOTTINGHAM AND NOTTINGHAMSHIRE ICB",5383,74880,0.95039940553594648,2.5636262307263607E-2,4538,578,111,68,70,18]
["QT6","CORNWALL AND THE ISLES OF SCILLY ICB",2503,35203,0.94886136636036755,2.0375549340791051E-2,2040,335,64,30,21,13]
["QU9","BUCKINGHAMSHIRE, OXFORDSHIRE AND BERKSHIRE WEST ICB",13838,135243,0.9338054632172279,3.3530857060268822E-2,11283,1639,382,226,238,70]
["QUA","BLACK COUNTRY ICB",5801,99325,0.90570591277365975,4.1027409067402175E-2,4408,846,183,105,133,126]
["QUE","CAMBRIDGESHIRE AND PETERBOROUGH ICB",4853,97813,0.95281269317947659,1.8545229754790851E-2,4077,547,124,44,46,15]
["QUY","BRISTOL, NORTH SOMERSET AND SOUTH GLOUCESTERSHIRE ICB",3335,74584,0.93043478260869561,2.6986506746626688E-2,2651,452,78,45,45,64]
["QVV","DORSET ICB",4180,13608,0.95,1.9856459330143541E-2,3360,611,87,41,42,39]
["QWE","SOUTH WEST LONDON ICB",8113,78670,0.92481203007518797,4.018242327129299E-2,6352,1151,245,143,183,39]
["QWO","WEST YORKSHIRE ICB",8048,198797,0.93526341948310143,3.1560636182902585E-2,6613,914,185,101,153,82]
["QWU","COVENTRY AND WARWICKSHIRE ICB",5656,76793,0.92220650636492218,3.9073550212164077E-2,4347,869,155,89,132,64]
["QXU","SURREY HEARTLANDS ICB",2981,82642,0.89365984568936596,6.5749748406574979E-2,2190,474,84,77,119,37]
["QYG","CHESHIRE AND MERSEYSIDE ICB",34426,213266,0.93995817114971247,3.0413059896589788E-2,28781,3578,814,483,564,206]
["IS1","INDEPENDENT SECTOR PROVIDERS",16007,193947,0.97351158867995247,1.1994752295870556E-2,13877,1706,186,92,100,46]

{"sheet":"Orgs","index":3,"n_rows":240,"n_cols":21,"rows_kept":240,"cut":false,"hidden":false,"merged":[[4,1,5,2],[6,13,6,20],[7,0,8,0],[7,1,8,1],[7,2,8,2],[7,3,8,3],[7,4,8,4],[7,5,8,5],[7,6,8,6],[7,7,7,12],[7,19,8,19],[7,20,8,20],[7,13,8,13],[7,14,8,14],[7,15,8,15],[7,16,8,16],[7,17,8,17],[7,18,8,18]]}
[]
[]
[]
[]
[null,null,null,null,null,null,null,"  "]
[null,null,null,null,null,null,null,"  "]
[null,null,null,null,null,null,null,null,null,null,null,null,null,"Response Mode"]
["ICB Code","Trust Code","Trust Name","Total Responses","Total Eligible","Percentage Positive","Percentage Negative","Breakdown of Responses",null,null,null,null,null,"Mode SMS","Mode Electronic At Appointment","Mode Electronic After Appointment","Mode Paper At Appointment","Mode Paper After Appointment","Mode Telephone","Mode Online","Mode Other"]
[null,null,null,null,null,null,null,"Very Good","Good","Neither Good nor Poor","Poor","Very Poor","Don't Know"]
[null,null,"England (including Independent Sector Providers)",329675,4643636,0.93371653901569729,3.2814135133085613E-2,264968,42855,8617,4932,5886,2417,210623,9394,2078,35452,3415,28293,38064,2356]
[null,null,"England (excluding Independent Sector Providers)",313668,4449689,0.93168573141028088,3.3876582883813462E-2,251091,41149,8431,4840,5786,2371,210061,8707,988,30387,3041,28293,29835,2356]
[null,null,"Selection (excluding suppressed data)",{"$f":"SUBTOTAL(9, D13:D10000)","v":329675},{"$f":"SUBTOTAL(9, E13:E10000)","v":4643636},{"$f":"IFERROR((H12+I12)/D12, \"-\")","v":0.91829225752635169},{"$f":"IFERROR((K12+L12)/D12, \"-\")","v":3.2316675513763556E-2},{"$f":"SUBTOTAL(9, H13:H10000)","v":260297},{"$f":"SUBTOTAL(9, I13:I10000)","v":42441},8518,4860,5794,2408,205290,9394,2078,35433,3411,28293,38063,2356]
["QE1","RXL","BLACKPOOL TEACHING HOSPITALS NHS FOUNDATION TRUST",2017,29899,0.92315319781854244,4.1646008924144773E-2,1589,273,63,35,49,8,1258,0,0,702,0,0,57,0]
["QE1","RXR","EAST LANCASHIRE HOSPITALS NHS TRUST",1480,40974,0.92229729729729726,3.4459459459459461E-2,1202,163,30,26,25,34,980,0,0,434,0,0,66,0]
["QE1","RXN","LANCASHIRE TEACHING HOSPITALS NHS FOUNDATION TRUST",2278,42683,0.90342405618964006,4.6971027216856892E-2,1631,427,102,58,49,11,1856,0,0,141,0,264,17,0]
["QE1","RTX","UNIVERSITY HOSPITALS OF MORECAMBE BAY NHS FOUNDATION TRUST",2093,22497,0.94792164357381747,2.197802197802198E-2,1714,270,49,19,27,14,1646,0,0,0,0,446,1,0]
["QF7","RFF","BARNSLEY HOSPITAL NHS FOUNDATION TRUST",259,30954,0.95366795366795365,2.7027027027027029E-2,225,22,4,2,5,1,259,0,0,0,0,0,0,0]
["QF7","RP5","DONCASTER AND BASSETLAW TEACHING HOSPITALS NHS FOUNDATION TRUST",408,41312,0.9779411764705882,1.4705882352941176E-2,356,43,3,1,5,0,0,0,0,396,0,0,12,0]
["QF7","RCU","SHEFFIELD CHILDREN'S NHS FOUNDATION TRUST",1531,15872,0.8870019595035924,6.6623122142390592E-2,1202,156,60,35,67,11,0,0,0,1,0,1507,23,0]
["QF7","RHQ","SHEFFIELD TEACHING HOSPITALS NHS FOUNDATION TRUST",5011,94891,0.9341448812612253,3.2528437437637198E-2,4091,590,134,75,88,33,4180,0,0,161,0,614,56,0]
["QF7","RFR","THE ROTHERHAM NHS FOUNDATION TRUST",248,22116,0.98790322580645162,4.0322580645161289E-3,222,23,2,1,0,0,0,0,0,247,0,0,1,0]
["QGH","RWP","WORCESTERSHIRE ACUTE HOSPITALS NHS TRUST",5333,28764,0.94918432402025121,3.0564410275642228E-2,"*","*","*","*","*","*","*","*","*","*","*","*","*","*"]
["QGH","RLQ","WYE VALLEY NHS TRUST",1,14342,"*","*","*","*","*","*","*","*","*","*","*","*","*","*","*","*"]
["QH8","RAJ","MID AND SOUTH ESSEX NHS FOUNDATION TRUST",6223,25811,0.92238470191226096,3.5513417965611443E-2,4783,957,211,92,129,51,5032,0,0,0,0,1167,24,0]
["QHG","RC9","BEDFORDSHIRE HOSPITALS NHS FOUNDATION TRUST",1085,30136,0.93640552995391702,3.0414746543778803E-2,820,196,28,18,15,8,0,621,0,16,0,0,448,0]
["QHG","RD8","MILTON KEYNES UNIVERSITY HOSPITAL NHS FOUNDATION TRUST",2762,18321,0.92396813902968866,2.9688631426502535E-2,2101,451,121,49,33,7,2666,0,0,0,72,0,24,0]
["QHL","RQ3","BIRMINGHAM WOMEN'S AND CHILDREN'S NHS FOUNDATION TRUST",173,28662,0.95375722543352603,1.7341040462427744E-2,149,16,5,2,1,0,0,0,0,0,0,0,173,0]
["QHL","RXK","SANDWELL AND WEST BIRMINGHAM HOSPITALS NHS TRUST",4242,47744,0.8958038661008958,5.6105610561056105E-2,3070,730,164,100,138,40,3619,0,0,0,0,623,0,0]
["QHL","RRK","UNIVERSITY HOSPITALS BIRMINGHAM NHS FOUNDATION TRUST",872,129483,0.97018348623853212,2.1788990825688075E-2,735,111,7,9,10,0,0,0,0,872,0,0,0,0]
["QHM","RXP","COUNTY DURHAM AND DARLINGTON NHS FOUNDATION TRUST",290,37524,0.99655172413793103,3.4482758620689655E-3,274,15,0,1,0,0,0,0,0,290,0,0,0,0]
["QHM","RR7","GATESHEAD HEALTH NHS FOUNDATION TRUST",519,11629,0.94412331406551064,2.6974951830443159E-2,432,58,12,6,8,3,510,0,0,9,0,0,0,0]
["QHM","RNN","NORTH CUMBRIA INTEGRATED CARE NHS FOUNDATION TRUST",347,418,0.97118155619596547,1.7291066282420751E-2,313,24,4,3,3,0,5,0,0,342,0,0,0,0]
["QHM","RVW","NORTH TEES AND HARTLEPOOL NHS FOUNDATION TRUST",647,9909,0.9381761978361669,2.6275115919629059E-2,522,85,21,9,8,2,635,0,0,12,0,0,0,0]
["QHM","RTF","NORTHUMBRIA HEALTHCARE NHS FOUNDATION TRUST",1038,32725,0.93737957610789979,3.1791907514450865E-2,813,160,26,18,15,6,809,0,0,0,229,0,0,0]
["QHM","RTR","SOUTH TEES HOSPITALS NHS FOUNDATION TRUST",1351,41137,0.96595114729829756,1.5544041450777202E-2,1137,168,22,10,11,3,1298,31,0,0,3,0,19,0]
["QHM","R0B","SOUTH TYNESIDE AND SUNDERLAND NHS FOUNDATION TRUST",103,48807,0.96116504854368934,2.9126213592233011E-2,96,3,1,2,1,0,0,0,0,48,0,0,55,0]
["QHM","RTD","THE NEWCASTLE UPON TYNE HOSPITALS NHS FOUNDATION TRUST",1416,90051,0.97810734463276838,8.4745762711864406E-3,1210,175,17,3,9,2,0,0,0,1407,0,0,9,0]
["QJ2","RFS","CHESTERFIELD ROYAL HOSPITAL NHS FOUNDATION TRUST",1260,24644,0.93888888888888888,3.650793650793651E-2,1016,167,28,27,19,3,903,13,330,0,0,0,14,0]
["QJ2","RTG","UNIVERSITY HOSPITALS OF DERBY AND BURTON NHS FOUNDATION TRUST",5473,58866,0.93276082587246478,3.5081308240453135E-2,4312,793,170,98,94,6,4777,6,0,82,0,0,608,0]
["QJG","RDE","EAST SUFFOLK AND NORTH ESSEX NHS FOUNDATION TRUST",8728,48800,0.93377635197066911,2.9216315307057743E-2,6799,1351,257,136,119,66,3969,0,0,79,0,3938,742,0]
["QJG","RGR","WEST SUFFOLK NHS FOUNDATION TRUST",483,24586,0.97722567287784678,6.2111801242236021E-3,414,58,4,3,0,4,0,229,0,225,0,0,29,0]
["QJK","R5J2A","OPTIMAX - NEWTON ABBOT",19,"NA",1,0,19,0,0,0,0,0,0,0,0,0,19,0,0,0]
["QJK","RH8","ROYAL DEVON UNIVERSITY HEALTHCARE NHS FOUNDATION TRUST",147,30142,0.96598639455782309,1.3605442176870748E-2,136,6,3,2,0,0,0,0,0,120,0,0,27,0]
["QJK","RA9","TORBAY AND SOUTH DEVON NHS FOUNDATION TRUST",142,28315,0.971830985915493,0,133,5,1,0,0,3,0,0,0,142,0,0,0,0]
["QJK","RK9","UNIVERSITY HOSPITALS PLYMOUTH NHS TRUST",167,29078,0.97005988023952094,1.7964071856287425E-2,143,19,1,2,1,1,0,1,0,153,0,0,13,0]
["QJM","RWD","UNITED LINCOLNSHIRE HOSPITALS NHS TRUST",3187,40611,0.91277063068716657,3.9849388139315968E-2,2398,511,108,58,69,43,1372,0,0,0,0,1648,167,0]
["QK1","RWE","UNIVERSITY HOSPITALS OF LEICESTER NHS TRUST",11034,62425,0.93556280587275698,3.3532717056371217E-2,9065,1258,302,159,211,39,9314,437,0,1083,0,0,200,0]
["QKK","RJ1","GUY'S AND ST THOMAS' NHS FOUNDATION TRUST",3349,81731,0.91549716333233799,4.7775455359808899E-2,2569,497,114,64,96,9,2206,43,0,628,0,0,472,0]
["QKK","RJZ","KING'S COLLEGE HOSPITAL NHS FOUNDATION TRUST",8792,75820,0.90263876251137398,5.4595086442220199E-2,6364,1572,336,229,251,40,8643,1,0,0,13,0,135,0]
["QKK","RJ2","LEWISHAM AND GREENWICH NHS TRUST",4169,42029,0.92156392420244659,4.4135284240825134E-2,3115,727,134,86,98,9,3365,0,0,0,653,0,151,0]
["QKS","RN7","DARTFORD AND GRAVESHAM NHS TRUST",592,16416,0.96790540540540537,1.3513513513513514E-2,498,75,5,4,4,6,0,302,0,141,0,0,149,0]
["QKS","RVV","EAST KENT HOSPITALS UNIVERSITY NHS FOUNDATION TRUST",10295,28188,0.94239922292374945,3.1762991743564839E-2,8491,1211,266,181,146,0,10295,0,0,0,0,0,0,0]
["QKS","RWF","MAIDSTONE AND TUNBRIDGE WELLS NHS TRUST",1886,38524,0.95440084835630967,3.0222693531283137E-2,1573,227,25,38,19,4,0,0,0,269,0,0,1617,0]
["QKS","RPA","MEDWAY NHS FOUNDATION TRUST",1985,22712,0.88916876574307302,6.0957178841309821E-2,1430,335,71,58,63,28,1602,0,0,0,0,383,0,0]
["QM7","RWH","EAST AND NORTH HERTFORDSHIRE NHS TRUST",995,32323,0.95276381909547736,1.2060301507537688E-2,754,194,22,9,3,13,0,14,5,768,79,57,62,10]
["QM7","RQW","THE PRINCESS ALEXANDRA HOSPITAL NHS TRUST",1177,19771,0.88020390824129147,7.7315208156329654E-2,838,198,46,48,43,4,0,0,0,0,0,0,0,1177]
["QM7","RWG","WEST HERTFORDSHIRE TEACHING HOSPITALS NHS TRUST",511,24384,0.98434442270058709,3.9138943248532287E-3,457,46,4,1,1,2,0,511,0,0,0,0,0,0]
["QMF","RF4","BARKING, HAVERING AND REDBRIDGE UNIVERSITY HOSPITALS NHS TRUST",908,37962,0.91409691629955947,3.634361233480176E-2,735,95,8,4,29,37,0,0,13,809,0,0,86,0]
["QMF","R1H","BARTS HEALTH NHS TRUST",9648,111896,0.87106135986733002,6.5505804311774454E-2,6556,1848,390,249,383,222,7394,0,0,2231,0,0,23,0]
["QMF","RQX","HOMERTON HEALTHCARE NHS FOUNDATION TRUST",1747,26698,0.89524899828277049,6.3537492844876933E-2,1231,333,67,45,66,5,1524,0,62,0,31,0,130,0]
["QMJ","RP4","GREAT ORMOND STREET HOSPITAL FOR CHILDREN NHS FOUNDATION TRUST",582,13592,0.97250859106529208,1.8900343642611683E-2,513,53,3,8,3,2,0,0,0,548,0,0,34,0]
["QMJ","RP6","MOORFIELDS EYE HOSPITAL NHS FOUNDATION TRUST",14523,43228,0.92343179783791229,2.5614542449907043E-2,11260,2151,346,166,206,394,14523,0,0,0,0,0,0,0]
["QMJ","RAP","NORTH MIDDLESEX UNIVERSITY HOSPITAL NHS TRUST",1417,30615,0.80733944954128445,0.1213832039520113,868,276,59,47,125,42,1043,88,0,29,0,257,0,0]
["QMJ","RAL","ROYAL FREE LONDON NHS FOUNDATION TRUST",1034,74863,0.9042553191489362,5.1257253384912958E-2,727,208,28,14,39,18,0,952,0,0,0,0,82,0]
["QMJ","RRV","UNIVERSITY COLLEGE LONDON HOSPITALS NHS FOUNDATION TRUST",5230,66187,0.91223709369024852,3.8623326959847035E-2,4096,675,189,79,123,68,3822,0,0,0,0,1408,0,0]
["QMJ","RKE","WHITTINGTON HEALTH NHS TRUST",92,18751,0.86956521739130432,0.10869565217391304,75,5,1,5,5,1,0,0,0,0,60,0,32,0]
["QMM","RGP","JAMES PAGET UNIVERSITY HOSPITALS NHS FOUNDATION TRUST",2272,17648,0.980193661971831,9.683098591549295E-3,2136,91,23,6,16,0,0,0,0,2272,0,0,0,0]
["QMM","RM1","NORFOLK AND NORWICH UNIVERSITY HOSPITALS NHS FOUNDATION TRUST",2297,41784,0.93948628646060084,3.0039181541140617E-2,1865,293,67,42,27,3,0,0,0,100,0,0,2197,0]
["QMM","RCX","THE QUEEN ELIZABETH HOSPITAL, KING'S LYNN, NHS FOUNDATION TRUST",1130,20581,0.94513274336283182,2.831858407079646E-2,952,116,27,19,13,3,0,0,0,338,0,0,792,0]
["QNC","RRE","MIDLANDS PARTNERSHIP NHS FOUNDATION TRUST",0,2509,"NA","NA",0,0,0,0,0,0,0,0,0,0,0,0,0,0]
["QNC","RJE","UNIVERSITY HOSPITALS OF NORTH MIDLANDS NHS TRUST",7881,48015,0.95926912828321276,1.9540667427991373E-2,6796,764,127,70,84,40,7572,102,0,202,0,0,5,0]
["QNQ","RDU","FRIMLEY HEALTH NHS FOUNDATION TRUST",675,41791,0.94518518518518524,1.6296296296296295E-2,435,203,25,5,6,1,0,0,0,675,0,0,0,0]
["QNX","RXC","EAST SUSSEX HEALTHCARE NHS TRUST",248,23545,0.98790322580645162,4.0322580645161289E-3,236,9,1,0,1,1,0,0,0,248,0,0,0,0]
["QNX","RPC","QUEEN VICTORIA HOSPITAL NHS FOUNDATION TRUST",1497,15174,0.94856379425517701,2.0708082832331328E-2,1244,176,39,19,12,7,551,0,0,209,0,737,0,0]
["QNX","RYR","UNIVERSITY HOSPITALS SUSSEX NHS FOUNDATION TRUST",1434,30701,0.94002789400278941,2.5104602510460251E-2,1181,167,42,22,14,8,1272,0,0,0,0,160,2,0]
["QOC","RL1","THE ROBERT JONES AND AGNES HUNT ORTHOPAEDIC HOSPITAL NHS FOUNDATION TRUST",1509,6370,0.97349237905897945,1.0603048376408217E-2,1361,108,21,10,6,3,1482,26,1,0,0,0,0,0]
["QOC","RXW","THE SHREWSBURY AND TELFORD HOSPITAL NHS TRUST",1094,26184,0.979890310786106,1.0054844606946984E-2,984,88,8,6,5,3,0,0,0,1093,0,0,1,0]
["QOP","RMC","BOLTON NHS FOUNDATION TRUST",2473,20864,0.92276587141124145,4.2862919530934088E-2,2011,271,66,43,63,19,2316,0,0,152,0,0,5,0]
["QOP","R0A","MANCHESTER UNIVERSITY NHS FOUNDATION TRUST",3243,111225,0.95282146160962067,2.1584952204748688E-2,2611,479,69,29,41,14,462,787,0,1363,0,5,20,606]
["QOP","RWJ","STOCKPORT NHS FOUNDATION TRUST",634,23853,0.89116719242902209,4.2586750788643532E-2,453,112,34,17,10,8,477,0,0,35,0,122,0,0]
["QOP","RMP","TAMESIDE AND GLOSSOP INTEGRATED CARE NHS FOUNDATION TRUST",1858,14998,0.90365984930032295,6.1356297093649086E-2,1484,195,57,48,66,8,0,29,0,31,0,0,1798,0]
["QOP","RBV","THE CHRISTIE NHS FOUNDATION TRUST",1903,31349,0.94429847609038364,1.839201261166579E-2,1602,195,52,25,10,19,1903,0,0,0,0,0,0,0]
["QOP","RRF","WRIGHTINGTON, WIGAN AND LEIGH NHS FOUNDATION TRUST",1097,26998,0.93710118505013673,3.5551504102096627E-2,915,113,27,21,18,3,772,0,0,161,0,163,1,0]
["QOQ","RCD","HARROGATE AND DISTRICT NHS FOUNDATION TRUST",2612,15231,0.94793261868300149,1.7228177641653904E-2,2015,461,82,19,26,9,0,0,0,0,0,2612,0,0]
["QOQ","RWA","HULL UNIVERSITY TEACHING HOSPITALS NHS TRUST",4640,49601,0.92909482758620687,3.2112068965517243E-2,3697,614,144,76,73,36,3664,0,0,244,0,720,12,0]
["QOQ","RJL","NORTHERN LINCOLNSHIRE AND GOOLE NHS FOUNDATION TRUST",108,31051,0.82407407407407407,0.1111111111111111,79,10,4,1,11,3,0,28,0,71,0,0,9,0]
["QOQ","RCB","YORK AND SCARBOROUGH TEACHING HOSPITALS NHS FOUNDATION TRUST",1349,30753,0.949592290585619,2.6686434395848776E-2,1139,142,24,14,22,8,983,0,366,0,0,0,0,0]
["QOX","RN3","GREAT WESTERN HOSPITALS NHS FOUNDATION TRUST",834,20692,0.97961630695443647,5.9952038369304557E-3,765,52,6,1,4,6,0,0,0,829,0,0,5,0]
["QOX","RD1","ROYAL UNITED HOSPITALS BATH NHS FOUNDATION TRUST",206,32590,0.97572815533980584,1.4563106796116505E-2,178,23,2,3,0,0,0,0,0,193,0,0,13,0]
["QOX","RNZ","SALISBURY NHS FOUNDATION TRUST",230,16858,0.95652173913043481,2.1739130434782608E-2,197,23,5,3,2,0,0,0,0,175,0,0,55,0]
["QPM","RNQ","KETTERING GENERAL HOSPITAL NHS FOUNDATION TRUST",913,24169,0.95399780941949619,6.5717415115005475E-3,777,94,35,2,4,1,0,0,0,0,0,0,913,0]
["QPM","RNS","NORTHAMPTON GENERAL HOSPITAL NHS TRUST",2803,38682,0.93221548341063143,3.7103103817338563E-2,2203,410,71,43,61,15,1715,0,0,0,552,452,84,0]
["QR1","RTE","GLOUCESTERSHIRE HOSPITALS NHS FOUNDATION TRUST",3970,45295,0.94256926952141062,2.9722921914357683E-2,3113,629,102,68,50,8,3497,0,0,0,0,470,3,0]
["QRL","RN5","HAMPSHIRE HOSPITALS NHS FOUNDATION TRUST",1363,32156,0.94057226705796038,2.2743947175348497E-2,1085,197,40,16,15,10,483,0,0,543,0,298,39,0]
["QRL","R1F","ISLE OF WIGHT NHS TRUST",563,11675,0.9751332149200711,1.4209591474245116E-2,518,31,5,1,7,1,0,0,0,563,0,0,0,0]
["QRL","RHU","PORTSMOUTH HOSPITALS UNIVERSITY NATIONAL HEALTH SERVICE TRUST",5278,47792,0.93728685107995457,3.2777567260325879E-2,4358,589,136,69,104,22,5278,0,0,0,0,0,0,0]
["QRL","RHM","UNIVERSITY HOSPITAL SOUTHAMPTON NHS FOUNDATION TRUST",710,51238,0.95492957746478868,1.4084507042253521E-2,560,118,19,5,5,3,0,0,1,0,498,0,211,0]
["QRV","RQM","CHELSEA AND WESTMINSTER HOSPITAL NHS FOUNDATION TRUST",365,52203,0.989041095890411,2.7397260273972603E-3,347,14,3,1,0,0,0,0,0,0,0,0,365,0]
["QRV","RYJ","IMPERIAL COLLEGE HEALTHCARE NHS TRUST",7667,82054,0.93961132124690228,3.4563714621103428E-2,6213,991,188,117,148,10,0,1748,0,149,0,0,5770,0]
["QRV","R1K","LONDON NORTH WEST UNIVERSITY HEALTHCARE NHS TRUST",947,41482,0.9873284054910243,4.2238648363252373E-3,883,52,8,2,2,0,0,0,0,943,0,0,4,0]
["QRV","RAN","ROYAL NATIONAL ORTHOPAEDIC HOSPITAL NHS TRUST",1363,2710,0.9699192956713133,1.1005135730007337E-2,1214,108,26,10,5,0,0,789,0,0,0,0,574,0]
["QRV","RAS","THE HILLINGDON HOSPITALS NHS FOUNDATION TRUST",2679,21347,0.91116088092571856,4.8152295632698766E-2,1876,565,105,61,68,4,0,1,0,0,348,0,2330,0]
["QRV","RPY","THE ROYAL MARSDEN NHS FOUNDATION TRUST",1479,16542,0.94658553076402974,2.231237322515213E-2,1299,101,37,17,16,9,0,0,0,0,0,0,1479,0]
["QSL","RH5","SOMERSET NHS FOUNDATION TRUST",132,597,0.94696969696969702,2.2727272727272728E-2,114,11,3,2,1,1,0,0,0,0,132,0,0,0]
["QSL","RA4","YEOVIL DISTRICT HOSPITAL NHS FOUNDATION TRUST",1796,10740,0.97494432071269488,1.6146993318485525E-2,1633,118,16,9,20,0,0,1701,0,93,2,0,0,0]
["QT1","RX1","NOTTINGHAM UNIVERSITY HOSPITALS NHS TRUST",3002,45511,0.96535642904730179,1.7321785476349102E-2,2610,288,38,19,33,14,0,5,0,2800,0,0,197,0]
["QT1","RK5","SHERWOOD FOREST HOSPITALS NHS FOUNDATION TRUST",2381,29369,0.93154136917261654,3.6119277614447713E-2,1928,290,73,49,37,4,0,0,0,49,0,0,2332,0]
["QT6","REF","ROYAL CORNWALL HOSPITALS NHS TRUST",2503,35203,0.94886136636036755,2.0375549340791051E-2,2040,335,64,30,21,13,1531,177,0,5,0,0,790,0]
["QU9","RXQ","BUCKINGHAMSHIRE HEALTHCARE NHS TRUST",4031,24655,0.91714214835028529,3.6219300421731583E-2,3048,649,157,75,71,31,3329,0,0,0,0,702,0,0]
["QU9","RTH","OXFORD UNIVERSITY HOSPITALS NHS FOUNDATION TRUST",6422,65470,0.93895982559950175,3.0520087200249145E-2,5316,714,165,96,100,31,5908,0,0,0,18,0,496,0]
["QU9","RHW","ROYAL BERKSHIRE NHS FOUNDATION TRUST",3385,45118,0.9438700147710487,3.604135893648449E-2,2919,276,60,55,67,8,3144,0,0,241,0,0,0,0]
["QUA","RNA","THE DUDLEY GROUP NHS FOUNDATION TRUST",1396,33571,0.86318051575931232,4.5845272206303724E-2,1034,171,32,22,42,95,1043,0,0,332,0,0,21,0]
["QUA","RL4","THE ROYAL WOLVERHAMPTON NHS TRUST",1925,48172,0.92519480519480524,3.7922077922077919E-2,1491,290,55,35,38,16,812,0,0,0,0,1111,2,0]
["QUA","RBK","WALSALL HEALTHCARE NHS TRUST",2480,17582,0.9145161290322581,4.0725806451612903E-2,1883,385,96,48,53,15,2177,4,0,0,0,299,0,0]
["QUE","RGT","CAMBRIDGE UNIVERSITY HOSPITALS NHS FOUNDATION TRUST",2773,46172,0.93977641543454737,2.6325279480706815E-2,2221,385,93,35,38,1,2708,0,0,63,0,0,2,0]
["QUE","RGN","NORTH WEST ANGLIA NHS FOUNDATION TRUST",1218,44621,0.97126436781609193,6.5681444991789817E-3,1087,96,16,3,5,11,0,0,0,1159,0,0,59,0]
["QUE","RGM","ROYAL PAPWORTH HOSPITAL NHS FOUNDATION TRUST",862,7020,0.96867749419953597,1.0440835266821345E-2,769,66,15,6,3,3,0,0,0,0,0,0,862,0]
["QUY","RVJ","NORTH BRISTOL NHS TRUST",110,29498,0.9,5.4545454545454543E-2,85,14,3,1,5,2,39,0,0,0,0,60,11,0]
["QUY","RA7","UNIVERSITY HOSPITALS BRISTOL AND WESTON NHS FOUNDATION TRUST",3225,45086,0.93147286821705422,2.6046511627906978E-2,2566,438,75,44,40,62,3069,0,0,19,137,0,0,0]
["QVV","RBD","DORSET COUNTY HOSPITAL NHS FOUNDATION TRUST",1789,13608,0.94633873672442703,2.0122973728339856E-2,1437,256,43,20,16,17,1773,0,0,0,0,16,0,0]
["QVV","R0D","UNIVERSITY HOSPITALS DORSET NHS FOUNDATION TRUST",2391,"NA",0.9527394395650356,1.9657047260560435E-2,1923,355,44,21,26,22,2082,0,0,0,9,0,300,0]
["QWE","RJ6","CROYDON HEALTH SERVICES NHS TRUST",3568,27102,0.9313340807174888,3.9517937219730945E-2,2862,461,82,58,83,22,3568,0,0,0,0,0,0,0]
["QWE","RVR","EPSOM AND ST HELIER UNIVERSITY HOSPITALS NHS TRUST",2082,26531,0.92987512007684914,3.3621517771373677E-2,1668,268,64,30,40,12,1356,15,0,401,0,274,36,0]
["QWE","RAX","KINGSTON HOSPITAL NHS FOUNDATION TRUST",2463,25037,0.91108404384896469,4.6691027202598455E-2,1822,422,99,55,60,5,1204,0,10,0,0,1243,6,0]
["QWO","RCF","AIREDALE NHS FOUNDATION TRUST",1096,12925,0.94343065693430661,3.2846715328467155E-2,910,124,22,16,20,4,1095,0,0,0,0,0,1,0]
["QWO","RAE","BRADFORD TEACHING HOSPITALS NHS FOUNDATION TRUST",522,29225,0.93678160919540232,3.8314176245210725E-2,437,52,13,6,14,0,3,1,0,0,0,0,494,24]
["QWO","RWY","CALDERDALE AND HUDDERSFIELD NHS FOUNDATION TRUST",683,28902,0.90483162518301608,6.2957540263543194E-2,547,71,18,15,28,4,634,0,0,0,0,0,49,0]
["QWO","RR8","LEEDS TEACHING HOSPITALS NHS TRUST",2480,83342,0.9512096774193548,2.1370967741935483E-2,2064,295,51,23,30,17,1405,0,200,0,186,626,63,0]
["QWO","RXF","MID YORKSHIRE HOSPITALS NHS TRUST",3267,44403,0.92653810835629014,3.1221303948576674E-2,2655,372,81,41,61,57,1476,0,0,1665,0,0,126,0]
["QWU","RLT","GEORGE ELIOT HOSPITAL NHS TRUST",2539,15894,0.92437967703820401,3.3871602993304453E-2,1879,468,58,34,52,48,2509,0,0,0,0,30,0,0]
["QWU","RJC","SOUTH WARWICKSHIRE NHS FOUNDATION TRUST",229,16377,0.9606986899563319,2.6200873362445413E-2,211,9,0,1,5,3,0,0,0,163,0,0,66,0]
["QWU","RKB","UNIVERSITY HOSPITALS COVENTRY AND WARWICKSHIRE NHS TRUST",2888,44522,0.91724376731301938,4.4667590027700828E-2,2257,392,97,54,75,13,2598,0,0,0,0,278,12,0]
["QXU","RTK","ASHFORD AND ST PETER'S HOSPITALS NHS FOUNDATION TRUST",1098,35574,0.85519125683060104,0.1029143897996357,781,158,18,27,86,28,37,0,0,0,0,0,1061,0]
["QXU","RA2","ROYAL SURREY COUNTY HOSPITAL NHS FOUNDATION TRUST",30,22930,0.96666666666666667,0,27,2,1,0,0,0,0,0,0,28,0,0,2,0]
["QXU","RTP","SURREY AND SUSSEX HEALTHCARE NHS TRUST",1853,24138,0.91527253103076089,4.4792228818132759E-2,1382,314,65,50,33,9,1545,0,0,232,0,13,63,0]
["QYG","RBS","ALDER HEY CHILDREN'S NHS FOUNDATION TRUST",644,14881,0.94254658385093171,3.8819875776397512E-2,531,76,8,12,13,4,447,45,0,0,0,0,152,0]
["QYG","RJN","EAST CHESHIRE NHS TRUST",2068,9270,0.95019342359767889,2.4661508704061894E-2,1772,193,43,26,25,9,1472,0,0,0,0,596,0,0]
["QYG","RBQ","LIVERPOOL HEART AND CHEST HOSPITAL NHS FOUNDATION TRUST",0,4847,"NA","NA",0,0,0,0,0,0,0,0,0,0,0,0,0,0]
["QYG","REM","LIVERPOOL UNIVERSITY HOSPITALS NHS FOUNDATION TRUST",11330,22019,0.93654015887025599,3.362753751103266E-2,9465,1146,256,159,222,82,9902,0,0,0,0,1428,0,0]
["QYG","REP","LIVERPOOL WOMEN'S NHS FOUNDATION TRUST",539,10607,0.9146567717996289,4.8237476808905382E-2,447,46,14,12,14,6,0,0,0,0,0,0,0,539]
["QYG","RBT","MID CHESHIRE HOSPITALS NHS FOUNDATION TRUST",2176,19007,0.9388786764705882,3.079044117647059E-2,1746,297,58,33,34,8,1723,0,0,0,0,453,0,0]
["QYG","RVY","SOUTHPORT AND ORMSKIRK HOSPITAL NHS TRUST",2246,17794,0.93276936776491537,3.4728406055209264E-2,1815,280,63,40,38,10,1879,0,0,0,0,363,4,0]
["QYG","RBN","ST HELENS AND KNOWSLEY TEACHING HOSPITALS NHS TRUST",5194,32476,0.94031574894108583,2.5991528686946475E-2,4439,445,144,62,73,31,4445,0,0,96,0,626,27,0]
["QYG","REN","THE CLATTERBRIDGE CANCER CENTRE NHS FOUNDATION TRUST",2449,22486,0.96120865659452837,2.0008166598611678E-2,2196,158,39,24,25,7,2448,0,0,0,0,0,1,0]
["QYG","RET","THE WALTON CENTRE NHS FOUNDATION TRUST",150,8843,0.92666666666666664,3.3333333333333333E-2,121,18,3,2,3,3,0,0,0,0,0,0,150,0]
["QYG","RWW","WARRINGTON AND HALTON TEACHING HOSPITALS NHS FOUNDATION TRUST",3009,25005,0.93785310734463279,2.8580923894981722E-2,2421,401,77,39,47,24,1769,0,0,67,0,1169,4,0]
["QYG","RBL","WIRRAL UNIVERSITY TEACHING HOSPITAL NHS FOUNDATION TRUST",4621,26031,0.94048907162951745,3.1162086128543605E-2,3828,518,109,74,70,22,3666,0,0,0,0,955,0,0]
["IS1","NT401","ALEXANDRA HOSPITAL",0,3094,"NA","NA",0,0,0,0,0,0,0,0,0,0,0,0,0,0]
["IS1","NYW17","ASPEN HEALTHCARE - MIDLAND EYE",51,189,1,0,47,4,0,0,0,0,0,0,0,51,0,0,0,0]
["IS1","NT402","BATH CLINIC",0,597,"NA","NA",0,0,0,0,0,0,0,0,0,0,0,0,0,0]
["IS1","NT403","BEARDWOOD HOSPITAL",0,2534,"NA","NA",0,0,0,0,0,0,0,0,0,0,0,0,0,0]
["IS1","NT404","BEAUMONT HOSPITAL",0,2615,"NA","NA",0,0,0,0,0,0,0,0,0,0,0,0,0,0]
["IS1","NWF01","BENENDEN HOSPITAL",33,"NA",0.78787878787878785,0.21212121212121213,25,1,0,1,6,0,0,0,0,0,0,0,33,0]
["IS1","NT405","BISHOPS WOOD HOSPITAL",0,798,"NA","NA",0,0,0,0,0,0,0,0,0,0,0,0,0,0]
["IS1","NT406","BLACKHEATH HOSPITAL",0,1244,"NA","NA",0,0,0,0,0,0,0,0,0,0,0,0,0,0]
["IS1","NT451","CAVELL HOSPITAL",0,1013,"NA","NA",0,0,0,0,0,0,0,0,0,0,0,0,0,0]
["IS1","NT408","CHAUCER HOSPITAL",113,886,0.99115044247787609,0,108,4,1,0,0,0,0,0,0,113,0,0,0,0]
["IS1","NT409","CHELSFIELD PARK HOSPITAL",0,766,"NA","NA",0,0,0,0,0,0,0,0,0,0,0,0,0,0]
["IS1","NT410","CHILTERN HOSPITAL",0,575,"NA","NA",0,0,0,0,0,0,0,0,0,0,0,0,0,0]
["IS1","NT411","CLEMENTINE CHURCHILL HOSPITAL",0,2008,"NA","NA",0,0,0,0,0,0,0,0,0,0,0,0,0,0]
["IS1","NNE","DORKING HEALTHCARE LIMITED (DHC)",302,2059,0.96357615894039739,1.3245033112582781E-2,236,55,7,3,1,0,0,0,0,9,0,0,293,0]
["IS1","NT412","DROITWICH SPA HOSPITAL",0,1365,"NA","NA",0,0,0,0,0,0,0,0,0,0,0,0,0,0]
["IS1","NT447","DUCHY HOSPITAL",1,426,"*","*","*","*","*","*","*","*","*","*","*","*","*","*","*","*"]
["IS1","NT445","EDGBASTON HOSPITAL",0,1429,"NA","NA",0,0,0,0,0,0,0,0,0,0,0,0,0,0]
["IS1","ACM","EYE CARE MEDICAL LTD",16,"NA",1,0,16,0,0,0,0,0,0,0,0,16,0,0,0,0]
["IS1","NVG01","FAIRFIELD HOSPITAL",72,1872,1,0,69,3,0,0,0,0,0,0,0,72,0,0,0,0]
["IS1","NT417","GORING HALL HOSPITAL",4,1214,"*","*","*","*","*","*","*","*","*","*","*","*","*","*","*","*"]
["IS1","NT418","HAMPSHIRE CLINIC",0,1205,"NA","NA",0,0,0,0,0,0,0,0,0,0,0,0,0,0]
["IS1","NT419","HARBOUR HOSPITAL",3,296,"*","*","*","*","*","*","*","*","*","*","*","*","*","*","*","*"]
["IS1","NQT","HCRG CARE LTD",132,209,0.96969696969696972,0,94,34,3,0,0,1,0,0,0,0,126,0,6,0]
["IS1","NDA","HCRG CARE SERVICES LTD",4,"NA","*","*","*","*","*","*","*","*","*","*","*","*","*","*","*","*"]
["IS1","NT416","HENDON HOSPITAL",0,1450,"NA","NA",0,0,0,0,0,0,0,0,0,0,0,0,0,0]
["IS1","NT420","HIGHFIELD HOSPITAL",0,2049,"NA","NA",0,0,0,0,0,0,0,0,0,0,0,0,0,0]
["IS1","NXM","HORDER HEALTHCARE",61,347,1,0,53,8,0,0,0,0,0,0,0,61,0,0,0,0]
["IS1","NT448","HUDDERSFIELD HOSPITAL",0,1779,"NA","NA",0,0,0,0,0,0,0,0,0,0,0,0,0,0]
["IS1","NV1","INHEALTH LIMITED",6878,2798,0.96307066007560338,1.3812154696132596E-2,5802,822,119,54,41,40,0,0,0,0,0,0,6878,0]
["IS1","ADP","KIMS HOSPITAL",258,3066,0.99612403100775193,0,245,12,1,0,0,0,0,0,0,0,186,0,72,0]
["IS1","NT421","KINGS OAK HOSPITAL",1,1077,"*","*","*","*","*","*","*","*","*","*","*","*","*","*","*","*"]
["IS1","NT449","LANCASTER HOSPITAL",7,669,1,0,7,0,0,0,0,0,0,0,0,7,0,0,0,0]
["IS1","NT450","LINCOLN HOSPITAL",0,775,"NA","NA",0,0,0,0,0,0,0,0,0,0,0,0,0,0]
["IS1","NT422","LONDON INDEPENDENT HOSPITAL",3,3370,"*","*","*","*","*","*","*","*","*","*","*","*","*","*","*","*"]
["IS1","NT423","MANOR HOSPITAL",0,459,"NA","NA",0,0,0,0,0,0,0,0,0,0,0,0,0,0]
["IS1","NT424","MERIDEN HOSPITAL",4,1867,"*","*","*","*","*","*","*","*","*","*","*","*","*","*","*","*"]
["IS1","NT455","MOUNT ALVERNIA HOSPITAL",8,1554,1,0,8,0,0,0,0,0,0,0,0,8,0,0,0,0]
["IS1","ACG09","NEWMEDICA - BARLBOROUGH",130,"NA",0.98461538461538467,7.6923076923076927E-3,112,16,1,0,1,0,0,0,0,130,0,0,0,0]
["IS1","ACG20","NEWMEDICA - BRISTOL - LITFIELD HOUSE",117,"NA",0.99145299145299148,8.5470085470085479E-3,102,14,0,0,1,0,0,0,0,117,0,0,0,0]
["IS1","Q1S8W","NEWMEDICA - BURY ST EDMUNDS",135,"NA",0.97777777777777775,1.4814814814814815E-2,101,31,1,0,2,0,0,0,0,135,0,0,0,0]
["IS1","ACG36","NEWMEDICA - EXETER - GLEN HOUSE",71,"NA",1,0,65,6,0,0,0,0,0,0,0,71,0,0,0,0]
["IS1","ACG41","NEWMEDICA - FROME",86,"NA",0.98837209302325579,1.1627906976744186E-2,74,11,0,1,0,0,0,0,0,86,0,0,0,0]
["IS1","ACG13","NEWMEDICA - GLOUCESTER (ASPEN MEDICAL CENTRE)",216,"NA",0.94907407407407407,2.3148148148148147E-2,177,28,6,2,3,0,0,0,0,216,0,0,0,0]
["IS1","L0D9W","NEWMEDICA - GLOUCESTER (BRIGHOUSE COURT)",247,"NA",0.98380566801619429,8.0971659919028341E-3,219,24,2,2,0,0,0,0,0,246,0,0,1,0]
["IS1","ACG37","NEWMEDICA - IPSWICH",140,"NA",0.99285714285714288,7.1428571428571426E-3,137,2,0,1,0,0,0,0,0,140,0,0,0,0]
["IS1","ACG38","NEWMEDICA - LANGFORD",5,"NA",0.8,0,4,0,1,0,0,0,0,0,0,4,0,0,1,0]
["IS1","N6Z0R","NEWMEDICA - LINCOLN",0,"NA","NA","NA",0,0,0,0,0,0,0,0,0,0,0,0,0,0]
["IS1","ACG26","NEWMEDICA - NORTH DERBYSHIRE - MIDLAND COURT",334,"NA",0.99101796407185627,5.9880239520958087E-3,295,36,1,0,2,0,0,0,0,334,0,0,0,0]
["IS1","M4C5R","NEWMEDICA - NORTHAMPTON",153,"NA",0.98692810457516345,1.3071895424836602E-2,132,19,0,0,2,0,0,0,0,153,0,0,0,0]
["IS1","B5M7B","NEWMEDICA - NORWICH",323,"NA",0.99380804953560375,0,307,14,2,0,0,0,0,0,0,322,0,0,1,0]
["IS1","P5Y6K","NEWMEDICA - SHREWSBURY",115,"NA",1,0,113,2,0,0,0,0,0,0,0,115,0,0,0,0]
["IS1","ACG39","NEWMEDICA - SWINDON",57,"NA",1,0,51,6,0,0,0,0,0,0,0,57,0,0,0,0]
["IS1","ACG24","NEWMEDICA - TEESSIDE - NORTH ORMESBY",68,"NA",0.98529411764705888,0,64,3,1,0,0,0,0,0,0,68,0,0,0,0]
["IS1","ACG40","NEWMEDICA - WAKEFIELD",121,"NA",1,0,109,12,0,0,0,0,0,0,0,120,0,0,1,0]
["IS1","ACG30","NEWMEDICA - WORKSOP - DUKERIES",73,"NA",0.98630136986301364,0,64,8,1,0,0,0,0,0,0,73,0,0,0,0]
["IS1","ACG19","NEWMEDICA COMMUNITY OPHTHALMOLOGY - LEEDS",211,"NA",0.98578199052132698,0,185,23,3,0,0,0,0,0,0,210,0,0,1,0]
["IS1","ACG07","NEWMEDICA COMMUNITY OPHTHALMOLOGY - LEICESTERSHIRE - LEICESTER (STONEYGATE EYE HOSPITAL)",79,"NA",1,0,77,2,0,0,0,0,0,0,0,78,0,0,1,0]
["IS1","ACG12","NEWMEDICA COMMUNITY OPHTHALMOLOGY - NORTH EAST LINCOLNSHIRE - GRIMSBY",275,"NA",0.97090909090909094,1.8181818181818181E-2,222,45,3,2,3,0,0,0,0,274,0,0,1,0]
["IS1","ACG08","NEWMEDICA OPHTHALMOLOGY - NUNEATON - CAMP HILL - GP LED HEALTH CENTRE",61,"NA",1,0,54,7,0,0,0,0,0,0,0,61,0,0,0,0]
["IS1","NT2","NUFFIELD HEALTH",6,7544,1,0,6,0,0,0,0,0,0,0,0,6,0,0,0,0]
["IS1","U7W9J","OPTIMAX CLINICS LIMITED",19,"NA",1,0,19,0,0,0,0,0,0,0,0,0,19,0,0,0]
["IS1","NT427","PARK HOSPITAL",0,1211,"NA","NA",0,0,0,0,0,0,0,0,0,0,0,0,0,0]
["IS1","NMN","PENINSULA HEALTH LLP",39,"NA",1,0,32,7,0,0,0,0,0,0,0,0,39,0,0,0]
["IS1","NEQ","PHOENIX HEALTH SOLUTIONS LIMITED HQ",56,"NA",0.9107142857142857,3.5714285714285712E-2,41,10,3,2,0,0,56,0,0,0,0,0,0,0]
["IS1","NEY","PIONEER HEALTHCARE LIMITED",139,179,0.91366906474820142,3.5971223021582732E-2,107,20,6,3,2,1,110,0,0,29,0,0,0,0]
["IS1","NTP13","PRACTICE PLUS GROUP HOSPITAL - BARLBOROUGH",330,943,0.96060606060606057,2.4242424242424242E-2,291,26,4,3,5,1,290,40,0,0,0,0,0,0]
["IS1","NTPH2","PRACTICE PLUS GROUP HOSPITAL - EMERSONS GREEN",169,1803,1,0,168,1,0,0,0,0,0,169,0,0,0,0,0,0]
["IS1","NTP15","PRACTICE PLUS GROUP HOSPITAL - ILFORD",978,1835,0.99591002044989774,0,877,97,4,0,0,0,0,0,978,0,0,0,0,0]
["IS1","NTPH5","PRACTICE PLUS GROUP HOSPITAL - PLYMOUTH",169,488,1,0,155,14,0,0,0,0,0,169,0,0,0,0,0,0]
["IS1","NTPH1","PRACTICE PLUS GROUP HOSPITAL - SHEPTON MALLET",42,1481,1,0,40,2,0,0,0,0,0,42,0,0,0,0,0,0]
["IS1","NTP11","PRACTICE PLUS GROUP HOSPITAL - SOUTHAMPTON",142,3032,0.92253521126760563,4.9295774647887321E-2,106,25,4,3,4,0,0,30,112,0,0,0,0,0]
["IS1","NTPAE","PRACTICE PLUS GROUP OPHTHALMOLOGY - NORTH WEST",106,1690,0.96226415094339623,1.8867924528301886E-2,94,8,0,0,2,2,106,0,0,0,0,0,0,0]
["IS1","NTPAD","PRACTICE PLUS GROUP SURGICAL CENTRE - ST MARYS PORTSMOUTH",237,1747,1,0,228,9,0,0,0,0,0,237,0,0,0,0,0,0]
["IS1","NT428","PRINCESS MARGARET HOSPITAL",0,440,"NA","NA",0,0,0,0,0,0,0,0,0,0,0,0,0,0]
["IS1","NT429","PRIORY HOSPITAL",0,920,"NA","NA",0,0,0,0,0,0,0,0,0,0,0,0,0,0]
["IS1","NAM","PROBUS SURGERY LIMITED",15,"NA",1,0,14,1,0,0,0,0,0,0,0,0,0,0,15,0]
["IS1","NVC","RAMSAY HEALTHCARE UK OPERATIONS LIMITED",2029,77921,0.98422868408082798,1.5278462296697881E-2,1820,177,0,10,21,1,0,0,0,1595,0,0,434,0]
["IS1","NT430","RIDGEWAY HOSPITAL",0,1069,"NA","NA",0,0,0,0,0,0,0,0,0,0,0,0,0,0]
["IS1","NT431","RUNNYMEDE HOSPITAL",0,149,"NA","NA",0,0,0,0,0,0,0,0,0,0,0,0,0,0]
["IS1","NT433","SARUM ROAD HOSPITAL",2,391,"*","*","*","*","*","*","*","*","*","*","*","*","*","*","*","*"]
["IS1","NT434","SAXON CLINIC",0,632,"NA","NA",0,0,0,0,0,0,0,0,0,0,0,0,0,0]
["IS1","NT435","SHELBURNE HOSPITAL",0,101,"NA","NA",0,0,0,0,0,0,0,0,0,0,0,0,0,0]
["IS1","NT436","SHIRLEY OAKS HOSPITAL",0,1582,"NA","NA",0,0,0,0,0,0,0,0,0,0,0,0,0,0]
["IS1","NT437","SLOANE HOSPITAL",16,579,1,0,15,1,0,0,0,0,0,0,0,16,0,0,0,0]
["IS1","NT490","SOUTHEND PRIVATE HOSPITAL",0,492,"NA","NA",0,0,0,0,0,0,0,0,0,0,0,0,0,0]
["IS1","NT3","SPIRE HEALTHCARE",491,34394,0.95723014256619143,1.8329938900203666E-2,419,51,12,5,4,0,0,0,0,0,0,0,491,0]
["IS1","NT446","ST EDMUNDS HOSPITAL",1,325,"*","*","*","*","*","*","*","*","*","*","*","*","*","*","*","*"]
["IS1","AAH","TETBURY HOSPITAL TRUST LTD",0,"NA","NA","NA",0,0,0,0,0,0,0,0,0,0,0,0,0,0]
["IS1","NT440","THORNBURY HOSPITAL",11,541,1,0,11,0,0,0,0,0,0,0,0,11,0,0,0,0]
["IS1","NT441","THREE SHIRES HOSPITAL",42,2189,1,0,39,3,0,0,0,0,0,0,0,42,0,0,0,0]
["IS1","D1V8O","ULTRALASE EYE CLINICS LIMITED",0,"NA","NA","NA",0,0,0,0,0,0,0,0,0,0,0,0,0,0]
["IS1","NT443","WINTERBOURNE HOSPITAL",0,448,"NA","NA",0,0,0,0,0,0,0,0,0,0,0,0,0,0]
["IS1","NT457","WOODLANDS HOSPITAL",0,2167,"NA","NA",0,0,0,0,0,0,0,0,0,0,0,0,0,0]

{"sheet":"BS","index":4,"n_rows":229,"n_cols":24,"rows_kept":229,"cut":false,"hidden":true,"merged":[]}
[null,"Sort","Region (Local Office) code","Region (Local Office) name","Org code","Org name",null,"Sort Lists:","Sort range…","Sort range…","ICB Reference Lists:","Code…","Name…","ICB Linked Lists:","Code…","Name…","Orgs Reference List:","Code…","Code…","Name…",null,"Orgs Linked List:","Code…","Name…"]
["OP Region (Local Office)",1,1,1,"N/A","N/A",null,null,"ICB Code","ICB Code",null,"QE1","LANCASHIRE AND SOUTH CUMBRIA ICB",null,"QE1","LANCASHIRE AND SOUTH CUMBRIA ICB",null,"QE1","RXL","BLACKPOOL TEACHING HOSPITALS NHS FOUNDATION TRUST",null,null,"RXL","BLACKPOOL TEACHING HOSPITALS NHS FOUNDATION TRUST"]
["OP Orgs",1,1,1,1,1,null,null,"ICB Name","Org Code",null,"QF7","SOUTH YORKSHIRE ICB",null,"QF7","SOUTH YORKSHIRE ICB",null,"QE1","RXR","EAST LANCASHIRE HOSPITALS NHS TRUST",null,null,"RXR","EAST LANCASHIRE HOSPITALS NHS TRUST"]
[null,null,null,null,null,null,null,null,"Total Responses","Organisation Name",null,"QGH","HEREFORDSHIRE AND WORCESTERSHIRE ICB",null,"QGH","HEREFORDSHIRE AND WORCESTERSHIRE ICB",null,"QE1","RXN","LANCASHIRE TEACHING HOSPITALS NHS FOUNDATION TRUST",null,null,"RXN","LANCASHIRE TEACHING HOSPITALS NHS FOUNDATION TRUST"]
[null,null,null,null,null,null,null,null,"Total Eligible","Total Responses",null,"QH8","MID AND SOUTH ESSEX ICB",null,"QH8","MID AND SOUTH ESSEX ICB",null,"QE1","RTX","UNIVERSITY HOSPITALS OF MORECAMBE BAY NHS FOUNDATION TRUST",null,null,"RTX","UNIVERSITY HOSPITALS OF MORECAMBE BAY NHS FOUNDATION TRUST"]
[null,null,null,null,null,null,null,null,"Percentage Positive","Total Eligible",null,"QHG","BEDFORDSHIRE, LUTON AND MILTON KEYNES ICB",null,"QHG","BEDFORDSHIRE, LUTON AND MILTON KEYNES ICB",null,"QF7","RFF","BARNSLEY HOSPITAL NHS FOUNDATION TRUST",null,null,"RFF","BARNSLEY HOSPITAL NHS FOUNDATION TRUST"]
[null,null,null,null,null,null,null,null,"Percentage Negative","Percentage Positive",null,"QHL","BIRMINGHAM AND SOLIHULL ICB",null,"QHL","BIRMINGHAM AND SOLIHULL ICB",null,"QF7","RP5","DONCASTER AND BASSETLAW TEACHING HOSPITALS NHS FOUNDATION TRUST",null,null,"RP5","DONCASTER AND BASSETLAW TEACHING HOSPITALS NHS FOUNDATION TRUST"]
[null,null,null,null,null,null,null,null,"Very Good","Percentage Negative",null,"QHM","NORTH EAST AND NORTH CUMBRIA ICB",null,"QHM","NORTH EAST AND NORTH CUMBRIA ICB",null,"QF7","RCU","SHEFFIELD CHILDREN'S NHS FOUNDATION TRUST",null,null,"RCU","SHEFFIELD CHILDREN'S NHS FOUNDATION TRUST"]
[null,null,null,null,null,null,null,null,"Good","Very Good",null,"QJ2","DERBY AND DERBYSHIRE ICB",null,"QJ2","DERBY AND DERBYSHIRE ICB",null,"QF7","RHQ","SHEFFIELD TEACHING HOSPITALS NHS FOUNDATION TRUST",null,null,"RHQ","SHEFFIELD TEACHING HOSPITALS NHS FOUNDATION TRUST"]
[null,null,null,null,null,null,null,null,"Neither Good nor Poor","Good",null,"QJG","SUFFOLK AND NORTH EAST ESSEX ICB",null,"QJG","SUFFOLK AND NORTH EAST ESSEX ICB",null,"QF7","RFR","THE ROTHERHAM NHS FOUNDATION TRUST",null,null,"RFR","THE ROTHERHAM NHS FOUNDATION TRUST"]
[null,null,null,null,null,null,null,null,"Poor","Neither Good nor Poor",null,"QJK","DEVON ICB",null,"QJK","DEVON ICB",null,"QGH","RWP","WORCESTERSHIRE ACUTE HOSPITALS NHS TRUST",null,null,"RWP","WORCESTERSHIRE ACUTE HOSPITALS NHS TRUST"]
[null,null,null,null,null,null,null,null,"Very Poor","Poor",null,"QJM","LINCOLNSHIRE ICB",null,"QJM","LINCOLNSHIRE ICB",null,"QGH","RLQ","WYE VALLEY NHS TRUST",null,null,"RLQ","WYE VALLEY NHS TRUST"]
[null,null,null,null,null,null,null,null,"Don't Know","Very Poor",null,"QK1","LEICESTER, LEICESTERSHIRE AND RUTLAND ICB",null,"QK1","LEICESTER, LEICESTERSHIRE AND RUTLAND ICB",null,"QH8","RAJ","MID AND SOUTH ESSEX NHS FOUNDATION TRUST",null,null,"RAJ","MID AND SOUTH ESSEX NHS FOUNDATION TRUST"]
[null,null,null,null,null,null,null,null,null,"Don't Know",null,"QKK","SOUTH EAST LONDON ICB",null,"QKK","SOUTH EAST LONDON ICB",null,"QHG","RC9","BEDFORDSHIRE HOSPITALS NHS FOUNDATION TRUST",null,null,"RC9","BEDFORDSHIRE HOSPITALS NHS FOUNDATION TRUST"]
[null,null,null,null,null,null,null,null,null,"Mode SMS",null,"QKS","KENT AND MEDWAY ICB",null,"QKS","KENT AND MEDWAY ICB",null,"QHG","RD8","MILTON KEYNES UNIVERSITY HOSPITAL NHS FOUNDATION TRUST",null,null,"RD8","MILTON KEYNES UNIVERSITY HOSPITAL NHS FOUNDATION TRUST"]
[null,null,null,null,null,null,null,null,null,"Mode Electronic At Appointment",null,"QM7","HERTFORDSHIRE AND WEST ESSEX ICB",null,"QM7","HERTFORDSHIRE AND WEST ESSEX ICB",null,"QHL","RQ3","BIRMINGHAM WOMEN'S AND CHILDREN'S NHS FOUNDATION TRUST",null,null,"RQ3","BIRMINGHAM WOMEN'S AND CHILDREN'S NHS FOUNDATION TRUST"]
[null,null,null,null,null,null,null,null,null,"Mode Electronic After Appointment",null,"QMF","NORTH EAST LONDON ICB",null,"QMF","NORTH EAST LONDON ICB",null,"QHL","RXK","SANDWELL AND WEST BIRMINGHAM HOSPITALS NHS TRUST",null,null,"RXK","SANDWELL AND WEST BIRMINGHAM HOSPITALS NHS TRUST"]
[null,null,null,null,null,null,null,null,null,"Mode Paper At Appointment",null,"QMJ","NORTH CENTRAL LONDON ICB",null,"QMJ","NORTH CENTRAL LONDON ICB",null,"QHL","RRK","UNIVERSITY HOSPITALS BIRMINGHAM NHS FOUNDATION TRUST",null,null,"RRK","UNIVERSITY HOSPITALS BIRMINGHAM NHS FOUNDATION TRUST"]
[null,null,null,null,null,null,null,null,null,"Mode Paper After Appointment",null,"QMM","NORFOLK AND WAVENEY ICB",null,"QMM","NORFOLK AND WAVENEY ICB",null,"QHM","RXP","COUNTY DURHAM AND DARLINGTON NHS FOUNDATION TRUST",null,null,"RXP","COUNTY DURHAM AND DARLINGTON NHS FOUNDATION TRUST"]
[null,null,null,null,null,null,null,null,null,"Mode Telephone",null,"QNC","STAFFORDSHIRE AND STOKE-ON-TRENT ICB",null,"QNC","STAFFORDSHIRE AND STOKE-ON-TRENT ICB",null,"QHM","RR7","GATESHEAD HEALTH NHS FOUNDATION TRUST",null,null,"RR7","GATESHEAD HEALTH NHS FOUNDATION TRUST"]
[null,null,null,null,null,null,null,null,null,"Mode Online",null,"QNQ","FRIMLEY ICB",null,"QNQ","FRIMLEY ICB",null,"QHM","RNN","NORTH CUMBRIA INTEGRATED CARE NHS FOUNDATION TRUST",null,null,"RNN","NORTH CUMBRIA INTEGRATED CARE NHS FOUNDATION TRUST"]
[null,null,null,null,null,null,null,null,null,"Mode Other",null,"QNX","SUSSEX ICB",null,"QNX","SUSSEX ICB",null,"QHM","RVW","NORTH TEES AND HARTLEPOOL NHS FOUNDATION TRUST",null,null,"RVW","NORTH TEES AND HARTLEPOOL NHS FOUNDATION TRUST"]
[null,null,null,null,null,null,null,null,null,null,null,"QOC","SHROPSHIRE, TELFORD AND WREKIN ICB",null,"QOC","SHROPSHIRE, TELFORD AND WREKIN ICB",null,"QHM","RTF","NORTHUMBRIA HEALTHCARE NHS FOUNDATION TRUST",null,null,"RTF","NORTHUMBRIA HEALTHCARE NHS FOUNDATION TRUST"]
[null,null,null,null,null,null,null,null,null,null,null,"QOP","GREATER MANCHESTER ICB",null,"QOP","GREATER MANCHESTER ICB",null,"QHM","RTR","SOUTH TEES HOSPITALS NHS FOUNDATION TRUST",null,null,"RTR","SOUTH TEES HOSPITALS NHS FOUNDATION TRUST"]
[null,null,null,null,null,null,null,null,null,null,null,"QOQ","HUMBER AND NORTH YORKSHIRE ICB",null,"QOQ","HUMBER AND NORTH YORKSHIRE ICB",null,"QHM","R0B","SOUTH TYNESIDE AND SUNDERLAND NHS FOUNDATION TRUST",null,null,"R0B","SOUTH TYNESIDE AND SUNDERLAND NHS FOUNDATION TRUST"]
[null,null,null,null,null,null,null,null,null,null,null,"QOX","BATH AND NORTH EAST SOMERSET, SWINDON AND WILTSHIRE ICB",null,"QOX","BATH AND NORTH EAST SOMERSET, SWINDON AND WILTSHIRE ICB",null,"QHM","RTD","THE NEWCASTLE UPON TYNE HOSPITALS NHS FOUNDATION TRUST",null,null,"RTD","THE NEWCASTLE UPON TYNE HOSPITALS NHS FOUNDATION TRUST"]
[null,null,null,null,null,null,null,null,null,null,null,"QPM","NORTHAMPTONSHIRE ICB",null,"QPM","NORTHAMPTONSHIRE ICB",null,"QJ2","RFS","CHESTERFIELD ROYAL HOSPITAL NHS FOUNDATION TRUST",null,null,"RFS","CHESTERFIELD ROYAL HOSPITAL NHS FOUNDATION TRUST"]
[null,null,null,null,null,null,null,null,null,null,null,"QR1","GLOUCESTERSHIRE ICB",null,"QR1","GLOUCESTERSHIRE ICB",null,"QJ2","RTG","UNIVERSITY HOSPITALS OF DERBY AND BURTON NHS FOUNDATION TRUST",null,null,"RTG","UNIVERSITY HOSPITALS OF DERBY AND BURTON NHS FOUNDATION TRUST"]
[null,null,null,null,null,null,null,null,null,null,null,"QRL","HAMPSHIRE AND ISLE OF WIGHT ICB",null,"QRL","HAMPSHIRE AND ISLE OF WIGHT ICB",null,"QJG","RDE","EAST SUFFOLK AND NORTH ESSEX NHS FOUNDATION TRUST",null,null,"RDE","EAST SUFFOLK AND NORTH ESSEX NHS FOUNDATION TRUST"]
[null,null,null,null,null,null,null,null,null,null,null,"QRV","NORTH WEST LONDON ICB",null,"QRV","NORTH WEST LONDON ICB",null,"QJG","RGR","WEST SUFFOLK NHS FOUNDATION TRUST",null,null,"RGR","WEST SUFFOLK NHS FOUNDATION TRUST"]
[null,null,null,null,null,null,null,null,null,null,null,"QSL","SOMERSET ICB",null,"QSL","SOMERSET ICB",null,"QJK","R5J2A","OPTIMAX - NEWTON ABBOT",null,null,"R5J2A","OPTIMAX - NEWTON ABBOT"]
[null,null,null,null,null,null,null,null,null,null,null,"QT1","NOTTINGHAM AND NOTTINGHAMSHIRE ICB",null,"QT1","NOTTINGHAM AND NOTTINGHAMSHIRE ICB",null,"QJK","RH8","ROYAL DEVON UNIVERSITY HEALTHCARE NHS FOUNDATION TRUST",null,null,"RH8","ROYAL DEVON UNIVERSITY HEALTHCARE NHS FOUNDATION TRUST"]
[null,null,null,null,null,null,null,null,null,null,null,"QT6","CORNWALL AND THE ISLES OF SCILLY ICB",null,"QT6","CORNWALL AND THE ISLES OF SCILLY ICB",null,"QJK","RA9","TORBAY AND SOUTH DEVON NHS FOUNDATION TRUST",null,null,"RA9","TORBAY AND SOUTH DEVON NHS FOUNDATION TRUST"]
[null,null,null,null,null,null,null,null,null,null,null,"QU9","BUCKINGHAMSHIRE, OXFORDSHIRE AND BERKSHIRE WEST ICB",null,"QU9","BUCKINGHAMSHIRE, OXFORDSHIRE AND BERKSHIRE WEST ICB",null,"QJK","RK9","UNIVERSITY HOSPITALS PLYMOUTH NHS TRUST",null,null,"RK9","UNIVERSITY HOSPITALS PLYMOUTH NHS TRUST"]
[null,null,null,null,null,null,null,null,null,null,null,"QUA","BLACK COUNTRY ICB",null,"QUA","BLACK COUNTRY ICB",null,"QJM","RWD","UNITED LINCOLNSHIRE HOSPITALS NHS TRUST",null,null,"RWD","UNITED LINCOLNSHIRE HOSPITALS NHS TRUST"]
[null,null,null,null,null,null,null,null,null,null,null,"QUE","CAMBRIDGESHIRE AND PETERBOROUGH ICB",null,"QUE","CAMBRIDGESHIRE AND PETERBOROUGH ICB",null,"QK1","RWE","UNIVERSITY HOSPITALS OF LEICESTER NHS TRUST",null,null,"RWE","UNIVERSITY HOSPITALS OF LEICESTER NHS TRUST"]
[null,null,null,null,null,null,null,null,null,null,null,"QUY","BRISTOL, NORTH SOMERSET AND SOUTH GLOUCESTERSHIRE ICB",null,"QUY","BRISTOL, NORTH SOMERSET AND SOUTH GLOUCESTERSHIRE ICB",null,"QKK","RJ1","GUY'S AND ST THOMAS' NHS FOUNDATION TRUST",null,null,"RJ1","GUY'S AND ST THOMAS' NHS FOUNDATION TRUST"]
[null,null,null,null,null,null,null,null,null,null,null,"QVV","DORSET ICB",null,"QVV","DORSET ICB",null,"QKK","RJZ","KING'S COLLEGE HOSPITAL NHS FOUNDATION TRUST",null,null,"RJZ","KING'S COLLEGE HOSPITAL NHS FOUNDATION TRUST"]
[null,null,null,null,null,null,null,null,null,null,null,"QWE","SOUTH WEST LONDON ICB",null,"QWE","SOUTH WEST LONDON ICB",null,"QKK","RJ2","LEWISHAM AND GREENWICH NHS TRUST",null,null,"RJ2","LEWISHAM AND GREENWICH NHS TRUST"]
[null,null,null,null,null,null,null,null,null,null,null,"QWO","WEST YORKSHIRE ICB",null,"QWO","WEST YORKSHIRE ICB",null,"QKS","RN7","DARTFORD AND GRAVESHAM NHS TRUST",null,null,"RN7","DARTFORD AND GRAVESHAM NHS TRUST"]
[null,null,null,null,null,null,null,null,null,null,null,"QWU","COVENTRY AND WARWICKSHIRE ICB",null,"QWU","COVENTRY AND WARWICKSHIRE ICB",null,"QKS","RVV","EAST KENT HOSPITALS UNIVERSITY NHS FOUNDATION TRUST",null,null,"RVV","EAST KENT HOSPITALS UNIVERSITY NHS FOUNDATION TRUST"]
[null,null,null,null,null,null,null,null,null,null,null,"QXU","SURREY HEARTLANDS ICB",null,"QXU","SURREY HEARTLANDS ICB",null,"QKS","RWF","MAIDSTONE AND TUNBRIDGE WELLS NHS TRUST",null,null,"RWF","MAIDSTONE AND TUNBRIDGE WELLS NHS TRUST"]
[null,null,null,null,null,null,null,null,null,null,null,"QYG","CHESHIRE AND MERSEYSIDE ICB",null,"QYG","CHESHIRE AND MERSEYSIDE ICB",null,"QKS","RPA","MEDWAY NHS FOUNDATION TRUST",null,null,"RPA","MEDWAY NHS FOUNDATION TRUST"]
[null,null,null,null,null,null,null,null,null,null,null,"zIS1","INDEPENDENT SECTOR PROVIDERS",null,"zIS1","INDEPENDENT SECTOR PROVIDERS",null,"QM7","RWH","EAST AND NORTH HERTFORDSHIRE NHS TRUST",null,null,"RWH","EAST AND NORTH HERTFORDSHIRE NHS TRUST"]
[null,null,null,null,null,null,null,null,null,null,null,null,null,null,null,null,null,"QM7","RQW","THE PRINCESS ALEXANDRA HOSPITAL NHS TRUST",null,null,"RQW","THE PRINCESS ALEXANDRA HOSPITAL NHS TRUST"]
[null,null,null,null,null,null,null,null,null,null,null,null,null,null,null,null,null,"QM7","RWG","WEST HERTFORDSHIRE TEACHING HOSPITALS NHS TRUST",null,null,"RWG","WEST HERTFORDSHIRE TEACHING HOSPITALS NHS TRUST"]
[null,null,null,null,null,null,null,null,null,null,null,null,null,null,null,null,null,"QMF","RF4","BARKING, HAVERING AND REDBRIDGE UNIVERSITY HOSPITALS NHS TRUST",null,null,"RF4","BARKING, HAVERING AND REDBRIDGE UNIVERSITY HOSPITALS NHS TRUST"]
[null,null,null,null,null,null,null,null,null,null,null,null,null,null,null,null,null,"QMF","R1H","BARTS HEALTH NHS TRUST",null,null,"R1H","BARTS HEALTH NHS TRUST"]
[null,null,null,null,null,null,null,null,null,null,null,null,null,null,null,null,null,"QMF","RQX","HOMERTON HEALTHCARE NHS FOUNDATION TRUST",null,null,"RQX","HOMERTON HEALTHCARE NHS FOUNDATION TRUST"]
[null,null,null,null,null,null,null,null,null,null,null,null,null,null,null,null,null,"QMJ","RP4","GREAT ORMOND STREET HOSPITAL FOR CHILDREN NHS FOUNDATION TRUST",null,null,"RP4","GREAT ORMOND STREET HOSPITAL FOR CHILDREN NHS FOUNDATION TRUST"]
[null,null,null,null,null,null,null,null,null,null,null,null,null,null,null,null,null,"QMJ","RP6","MOORFIELDS EYE HOSPITAL NHS FOUNDATION TRUST",null,null,"RP6","MOORFIELDS EYE HOSPITAL NHS FOUNDATION TRUST"]
[null,null,null,null,null,null,null,null,null,null,null,null,null,null,null,null,null,"QMJ","RAP","NORTH MIDDLESEX UNIVERSITY HOSPITAL NHS TRUST",null,null,"RAP","NORTH MIDDLESEX UNIVERSITY HOSPITAL NHS TRUST"]
[null,null,null,null,null,null,null,null,null,null,null,null,null,null,null,null,null,"QMJ","RAL","ROYAL FREE LONDON NHS FOUNDATION TRUST",null,null,"RAL","ROYAL FREE LONDON NHS FOUNDATION TRUST"]
[null,null,null,null,null,null,null,null,null,null,null,null,null,null,null,null,null,"QMJ","RRV","UNIVERSITY COLLEGE LONDON HOSPITALS NHS FOUNDATION TRUST",null,null,"RRV","UNIVERSITY COLLEGE LONDON HOSPITALS NHS FOUNDATION TRUST"]
[null,null,null,null,null,null,null,null,null,null,null,null,null,null,null,null,null,"QMJ","RKE","WHITTINGTON HEALTH NHS TRUST",null,null,"RKE","WHITTINGTON HEALTH NHS TRUST"]
[null,null,null,null,null,null,null,null,null,null,null,null,null,null,null,null,null,"QMM","RGP","JAMES PAGET UNIVERSITY HOSPITALS NHS FOUNDATION TRUST",null,null,"RGP","JAMES PAGET UNIVERSITY HOSPITALS NHS FOUNDATION TRUST"]
[null,null,null,null,null,null,null,null,null,null,null,null,null,null,null,null,null,"QMM","RM1","NORFOLK AND NORWICH UNIVERSITY HOSPITALS NHS FOUNDATION TRUST",null,null,"RM1","NORFOLK AND NORWICH UNIVERSITY HOSPITALS NHS FOUNDATION TRUST"]
[null,null,null,null,null,null,null,null,null,null,null,null,null,null,null,null,null,"QMM","RCX","THE QUEEN ELIZABETH HOSPITAL, KING'S LYNN, NHS FOUNDATION TRUST",null,null,"RCX","THE QUEEN ELIZABETH HOSPITAL, KING'S LYNN, NHS FOUNDATION TRUST"]
[null,null,null,null,null,null,null,null,null,null,null,null,null,null,null,null,null,"QNC","RRE","MIDLANDS PARTNERSHIP NHS FOUNDATION TRUST",null,null,"RRE","MIDLANDS PARTNERSHIP NHS FOUNDATION TRUST"]
[null,null,null,null,null,null,null,null,null,null,null,null,null,null,null,null,null,"QNC","RJE","UNIVERSITY HOSPITALS OF NORTH MIDLANDS NHS TRUST",null,null,"RJE","UNIVERSITY HOSPITALS OF NORTH MIDLANDS NHS TRUST"]
[null,null,null,null,null,null,null,null,null,null,null,null,null,null,null,null,null,"QNQ","RDU","FRIMLEY HEALTH NHS FOUNDATION TRUST",null,null,"RDU","FRIMLEY HEALTH NHS FOUNDATION TRUST"]
[null,null,null,null,null,null,null,null,null,null,null,null,null,null,null,null,null,"QNX","RXC","EAST SUSSEX HEALTHCARE NHS TRUST",null,null,"RXC","EAST SUSSEX HEALTHCARE NHS TRUST"]
[null,null,null,null,null,null,null,null,null,null,null,null,null,null,null,null,null,"QNX","RPC","QUEEN VICTORIA HOSPITAL NHS FOUNDATION TRUST",null,null,"RPC","QUEEN VICTORIA HOSPITAL NHS FOUNDATION TRUST"]
[null,null,null,null,null,null,null,null,null,null,null,null,null,null,null,null,null,"QNX","RYR","UNIVERSITY HOSPITALS SUSSEX NHS FOUNDATION TRUST",null,null,"RYR","UNIVERSITY HOSPITALS SUSSEX NHS FOUNDATION TRUST"]
[null,null,null,null,null,null,null,null,null,null,null,null,null,null,null,null,null,"QOC","RL1","THE ROBERT JONES AND AGNES HUNT ORTHOPAEDIC HOSPITAL NHS FOUNDATION TRUST",null,null,"RL1","THE ROBERT JONES AND AGNES HUNT ORTHOPAEDIC HOSPITAL NHS FOUNDATION TRUST"]
[null,null,null,null,null,null,null,null,null,null,null,null,null,null,null,null,null,"QOC","RXW","THE SHREWSBURY AND TELFORD HOSPITAL NHS TRUST",null,null,"RXW","THE SHREWSBURY AND TELFORD HOSPITAL NHS TRUST"]
[null,null,null,null,null,null,null,null,null,null,null,null,null,null,null,null,null,"QOP","RMC","BOLTON NHS FOUNDATION TRUST",null,null,"RMC","BOLTON NHS FOUNDATION TRUST"]
[null,null,null,null,null,null,null,null,null,null,null,null,null,null,null,null,null,"QOP","R0A","MANCHESTER UNIVERSITY NHS FOUNDATION TRUST",null,null,"R0A","MANCHESTER UNIVERSITY NHS FOUNDATION TRUST"]
[null,null,null,null,null,null,null,null,null,null,null,null,null,null,null,null,null,"QOP","RWJ","STOCKPORT NHS FOUNDATION TRUST",null,null,"RWJ","STOCKPORT NHS FOUNDATION TRUST"]
[null,null,null,null,null,null,null,null,null,null,null,null,null,null,null,null,null,"QOP","RMP","TAMESIDE AND GLOSSOP INTEGRATED CARE NHS FOUNDATION TRUST",null,null,"RMP","TAMESIDE AND GLOSSOP INTEGRATED CARE NHS FOUNDATION TRUST"]
[null,null,null,null,null,null,null,null,null,null,null,null,null,null,null,null,null,"QOP","RBV","THE CHRISTIE NHS FOUNDATION TRUST",null,null,"RBV","THE CHRISTIE NHS FOUNDATION TRUST"]
[null,null,null,null,null,null,null,null,null,null,null,null,null,null,null,null,null,"QOP","RRF","WRIGHTINGTON, WIGAN AND LEIGH NHS FOUNDATION TRUST",null,null,"RRF","WRIGHTINGTON, WIGAN AND LEIGH NHS FOUNDATION TRUST"]
[null,null,null,null,null,null,null,null,null,null,null,null,null,null,null,null,null,"QOQ","RCD","HARROGATE AND DISTRICT NHS FOUNDATION TRUST",null,null,"RCD","HARROGATE AND DISTRICT NHS FOUNDATION TRUST"]
[null,null,null,null,null,null,null,null,null,null,null,null,null,null,null,null,null,"QOQ","RWA","HULL UNIVERSITY TEACHING HOSPITALS NHS TRUST",null,null,"RWA","HULL UNIVERSITY TEACHING HOSPITALS NHS TRUST"]
[null,null,null,null,null,null,null,null,null,null,null,null,null,null,null,null,null,"QOQ","RJL","NORTHERN LINCOLNSHIRE AND GOOLE NHS FOUNDATION TRUST",null,null,"RJL","NORTHERN LINCOLNSHIRE AND GOOLE NHS FOUNDATION TRUST"]
[null,null,null,null,null,null,null,null,null,null,null,null,null,null,null,null,null,"QOQ","RCB","YORK AND SCARBOROUGH TEACHING HOSPITALS NHS FOUNDATION TRUST",null,null,"RCB","YORK AND SCARBOROUGH TEACHING HOSPITALS NHS FOUNDATION TRUST"]
[null,null,null,null,null,null,null,null,null,null,null,null,null,null,null,null,null,"QOX","RN3","GREAT WESTERN HOSPITALS NHS FOUNDATION TRUST",null,null,"RN3","GREAT WESTERN HOSPITALS NHS FOUNDATION TRUST"]
[null,null,null,null,null,null,null,null,null,null,null,null,null,null,null,null,null,"QOX","RD1","ROYAL UNITED HOSPITALS BATH NHS FOUNDATION TRUST",null,null,"RD1","ROYAL UNITED HOSPITALS BATH NHS FOUNDATION TRUST"]
[null,null,null,null,null,null,null,null,null,null,null,null,null,null,null,null,null,"QOX","RNZ","SALISBURY NHS FOUNDATION TRUST",null,null,"RNZ","SALISBURY NHS FOUNDATION TRUST"]
[null,null,null,null,null,null,null,null,null,null,null,null,null,null,null,null,null,"QPM","RNQ","KETTERING GENERAL HOSPITAL NHS FOUNDATION TRUST",null,null,"RNQ","KETTERING GENERAL HOSPITAL NHS FOUNDATION TRUST"]
[null,null,null,null,null,null,null,null,null,null,null,null,null,null,null,null,null,"QPM","RNS","NORTHAMPTON GENERAL HOSPITAL NHS TRUST",null,null,"RNS","NORTHAMPTON GENERAL HOSPITAL NHS TRUST"]
[null,null,null,null,null,null,null,null,null,null,null,null,null,null,null,null,null,"QR1","RTE","GLOUCESTERSHIRE HOSPITALS NHS FOUNDATION TRUST",null,null,"RTE","GLOUCESTERSHIRE HOSPITALS NHS FOUNDATION TRUST"]
[null,null,null,null,null,null,null,null,null,null,null,null,null,null,null,null,null,"QRL","RN5","HAMPSHIRE HOSPITALS NHS FOUNDATION TRUST",null,null,"RN5","HAMPSHIRE HOSPITALS NHS FOUNDATION TRUST"]
[null,null,null,null,null,null,null,null,null,null,null,null,null,null,null,null,null,"QRL","R1F","ISLE OF WIGHT NHS TRUST",null,null,"R1F","ISLE OF WIGHT NHS TRUST"]
[null,null,null,null,null,null,null,null,null,null,null,null,null,null,null,null,null,"QRL","RHU","PORTSMOUTH HOSPITALS UNIVERSITY NATIONAL HEALTH SERVICE TRUST",null,null,"RHU","PORTSMOUTH HOSPITALS UNIVERSITY NATIONAL HEALTH SERVICE TRUST"]
[null,null,null,null,null,null,null,null,null,null,null,null,null,null,null,null,null,"QRL","RHM","UNIVERSITY HOSPITAL SOUTHAMPTON NHS FOUNDATION TRUST",null,null,"RHM","UNIVERSITY HOSPITAL SOUTHAMPTON NHS FOUNDATION TRUST"]
[null,null,null,null,null,null,null,null,null,null,null,null,null,null,null,null,null,"QRV","RQM","CHELSEA AND WESTMINSTER HOSPITAL NHS FOUNDATION TRUST",null,null,"RQM","CHELSEA AND WESTMINSTER HOSPITAL NHS FOUNDATION TRUST"]
[null,null,null,null,null,null,null,null,null,null,null,null,null,null,null,null,null,"QRV","RYJ","IMPERIAL COLLEGE HEALTHCARE NHS TRUST",null,null,"RYJ","IMPERIAL COLLEGE HEALTHCARE NHS TRUST"]
[null,null,null,null,null,null,null,null,null,null,null,null,null,null,null,null,null,"QRV","R1K","LONDON NORTH WEST UNIVERSITY HEALTHCARE NHS TRUST",null,null,"R1K","LONDON NORTH WEST UNIVERSITY HEALTHCARE NHS TRUST"]
[null,null,null,null,null,null,null,null,null,null,null,null,null,null,null,null,null,"QRV","RAN","ROYAL NATIONAL ORTHOPAEDIC HOSPITAL NHS TRUST",null,null,"RAN","ROYAL NATIONAL ORTHOPAEDIC HOSPITAL NHS TRUST"]
[null,null,null,null,null,null,null,null,null,null,null,null,null,null,null,null,null,"QRV","RAS","THE HILLINGDON HOSPITALS NHS FOUNDATION TRUST",null,null,"RAS","THE HILLINGDON HOSPITALS NHS FOUNDATION TRUST"]
[null,null,null,null,null,null,null,null,null,null,null,null,null,null,null,null,null,"QRV","RPY","THE ROYAL MARSDEN NHS FOUNDATION TRUST",null,null,"RPY","THE ROYAL MARSDEN NHS FOUNDATION TRUST"]
[null,null,null,null,null,null,null,null,null,null,null,null,null,null,null,null,null,"QSL","RH5","SOMERSET NHS FOUNDATION TRUST",null,null,"RH5","SOMERSET NHS FOUNDATION TRUST"]
[null,null,null,null,null,null,null,null,null,null,null,null,null,null,null,null,null,"QSL","RA4","YEOVIL DISTRICT HOSPITAL NHS FOUNDATION TRUST",null,null,"RA4","YEOVIL DISTRICT HOSPITAL NHS FOUNDATION TRUST"]
[null,null,null,null,null,null,null,null,null,null,null,null,null,null,null,null,null,"QT1","RX1","NOTTINGHAM UNIVERSITY HOSPITALS NHS TRUST",null,null,"RX1","NOTTINGHAM UNIVERSITY HOSPITALS NHS TRUST"]
[null,null,null,null,null,null,null,null,null,null,null,null,null,null,null,null,null,"QT1","RK5","SHERWOOD FOREST HOSPITALS NHS FOUNDATION TRUST",null,null,"RK5","SHERWOOD FOREST HOSPITALS NHS FOUNDATION TRUST"]
[null,null,null,null,null,null,null,null,null,null,null,null,null,null,null,null,null,"QT6","REF","ROYAL CORNWALL HOSPITALS NHS TRUST",null,null,"REF","ROYAL CORNWALL HOSPITALS NHS TRUST"]
[null,null,null,null,null,null,null,null,null,null,null,null,null,null,null,null,null,"QU9","RXQ","BUCKINGHAMSHIRE HEALTHCARE NHS TRUST",null,null,"RXQ","BUCKINGHAMSHIRE HEALTHCARE NHS TRUST"]
[null,null,null,null,null,null,null,null,null,null,null,null,null,null,null,null,null,"QU9","RTH","OXFORD UNIVERSITY HOSPITALS NHS FOUNDATION TRUST",null,null,"RTH","OXFORD UNIVERSITY HOSPITALS NHS FOUNDATION TRUST"]
[null,null,null,null,null,null,null,null,null,null,null,null,null,null,null,null,null,"QU9","RHW","ROYAL BERKSHIRE NHS FOUNDATION TRUST",null,null,"RHW","ROYAL BERKSHIRE NHS FOUNDATION TRUST"]
[null,null,null,null,null,null,null,null,null,null,null,null,null,null,null,null,null,"QUA","RNA","THE DUDLEY GROUP NHS FOUNDATION TRUST",null,null,"RNA","THE DUDLEY GROUP NHS FOUNDATION TRUST"]
[null,null,null,null,null,null,null,null,null,null,null,null,null,null,null,null,null,"QUA","RL4","THE ROYAL WOLVERHAMPTON NHS TRUST",null,null,"RL4","THE ROYAL WOLVERHAMPTON NHS TRUST"]
[null,null,null,null,null,null,null,null,null,null,null,null,null,null,null,null,null,"QUA","RBK","WALSALL HEALTHCARE NHS TRUST",null,null,"RBK","WALSALL HEALTHCARE NHS TRUST"]
[null,null,null,null,null,null,null,null,null,null,null,null,null,null,null,null,null,"QUE","RGT","CAMBRIDGE UNIVERSITY HOSPITALS NHS FOUNDATION TRUST",null,null,"RGT","CAMBRIDGE UNIVERSITY HOSPITALS NHS FOUNDATION TRUST"]
[null,null,null,null,null,null,null,null,null,null,null,null,null,null,null,null,null,"QUE","RGN","NORTH WEST ANGLIA NHS FOUNDATION TRUST",null,null,"RGN","NORTH WEST ANGLIA NHS FOUNDATION TRUST"]
[null,null,null,null,null,null,null,null,null,null,null,null,null,null,null,null,null,"QUE","RGM","ROYAL PAPWORTH HOSPITAL NHS FOUNDATION TRUST",null,null,"RGM","ROYAL PAPWORTH HOSPITAL NHS FOUNDATION TRUST"]
[null,null,null,null,null,null,null,null,null,null,null,null,null,null,null,null,null,"QUY","RVJ","NORTH BRISTOL NHS TRUST",null,null,"RVJ","NORTH BRISTOL NHS TRUST"]
[null,null,null,null,null,null,null,null,null,null,null,null,null,null,null,null,null,"QUY","RA7","UNIVERSITY HOSPITALS BRISTOL AND WESTON NHS FOUNDATION TRUST",null,null,"RA7","UNIVERSITY HOSPITALS BRISTOL AND WESTON NHS FOUNDATION TRUST"]
[null,null,null,null,null,null,null,null,null,null,null,null,null,null,null,null,null,"QVV","RBD","DORSET COUNTY HOSPITAL NHS FOUNDATION TRUST",null,null,"RBD","DORSET COUNTY HOSPITAL NHS FOUNDATION TRUST"]
[null,null,null,null,null,null,null,null,null,null,null,null,null,null,null,null,null,"QVV","R0D","UNIVERSITY HOSPITALS DORSET NHS FOUNDATION TRUST",null,null,"R0D","UNIVERSITY HOSPITALS DORSET NHS FOUNDATION TRUST"]
[null,null,null,null,null,null,null,null,null,null,null,null,null,null,null,null,null,"QWE","RJ6","CROYDON HEALTH SERVICES NHS TRUST",null,null,"RJ6","CROYDON HEALTH SERVICES NHS TRUST"]
[null,null,null,null,null,null,null,null,null,null,null,null,null,null,null,null,null,"QWE","RVR","EPSOM AND ST HELIER UNIVERSITY HOSPITALS NHS TRUST",null,null,"RVR","EPSOM AND ST HELIER UNIVERSITY HOSPITALS NHS TRUST"]
[null,null,null,null,null,null,null,null,null,null,null,null,null,null,null,null,null,"QWE","RAX","KINGSTON HOSPITAL NHS FOUNDATION TRUST",null,null,"RAX","KINGSTON HOSPITAL NHS FOUNDATION TRUST"]
[null,null,null,null,null,null,null,null,null,null,null,null,null,null,null,null,null,"QWO","RCF","AIREDALE NHS FOUNDATION TRUST",null,null,"RCF","AIREDALE NHS FOUNDATION TRUST"]
[null,null,null,null,null,null,null,null,null,null,null,null,null,null,null,null,null,"QWO","RAE","BRADFORD TEACHING HOSPITALS NHS FOUNDATION TRUST",null,null,"RAE","BRADFORD TEACHING HOSPITALS NHS FOUNDATION TRUST"]
[null,null,null,null,null,null,null,null,null,null,null,null,null,null,null,null,null,"QWO","RWY","CALDERDALE AND HUDDERSFIELD NHS FOUNDATION TRUST",null,null,"RWY","CALDERDALE AND HUDDERSFIELD NHS FOUNDATION TRUST"]
[null,null,null,null,null,null,null,null,null,null,null,null,null,null,null,null,null,"QWO","RR8","LEEDS TEACHING HOSPITALS NHS TRUST",null,null,"RR8","LEEDS TEACHING HOSPITALS NHS TRUST"]
[null,null,null,null,null,null,null,null,null,null,null,null,null,null,null,null,null,"QWO","RXF","MID YORKSHIRE HOSPITALS NHS TRUST",null,null,"RXF","MID YORKSHIRE HOSPITALS NHS TRUST"]
[null,null,null,null,null,null,null,null,null,null,null,null,null,null,null,null,null,"QWU","RLT","GEORGE ELIOT HOSPITAL NHS TRUST",null,null,"RLT","GEORGE ELIOT HOSPITAL NHS TRUST"]
[null,null,null,null,null,null,null,null,null,null,null,null,null,null,null,null,null,"QWU","RJC","SOUTH WARWICKSHIRE NHS FOUNDATION TRUST",null,null,"RJC","SOUTH WARWICKSHIRE NHS FOUNDATION TRUST"]
[null,null,null,null,null,null,null,null,null,null,null,null,null,null,null,null,null,"QWU","RKB","UNIVERSITY HOSPITALS COVENTRY AND WARWICKSHIRE NHS TRUST",null,null,"RKB","UNIVERSITY HOSPITALS COVENTRY AND WARWICKSHIRE NHS TRUST"]
[null,null,null,null,null,null,null,null,null,null,null,null,null,null,null,null,null,"QXU","RTK","ASHFORD AND ST PETER'S HOSPITALS NHS FOUNDATION TRUST",null,null,"RTK","ASHFORD AND ST PETER'S HOSPITALS NHS FOUNDATION TRUST"]
[null,null,null,null,null,null,null,null,null,null,null,null,null,null,null,null,null,"QXU","RA2","ROYAL SURREY COUNTY HOSPITAL NHS FOUNDATION TRUST",null,null,"RA2","ROYAL SURREY COUNTY HOSPITAL NHS FOUNDATION TRUST"]
[null,null,null,null,null,null,null,null,null,null,null,null,null,null,null,null,null,"QXU","RTP","SURREY AND SUSSEX HEALTHCARE NHS TRUST",null,null,"RTP","SURREY AND SUSSEX HEALTHCARE NHS TRUST"]
[null,null,null,null,null,null,null,null,null,null,null,null,null,null,null,null,null,"QYG","RBS","ALDER HEY CHILDREN'S NHS FOUNDATION TRUST",null,null,"RBS","ALDER HEY CHILDREN'S NHS FOUNDATION TRUST"]
[null,null,null,null,null,null,null,null,null,null,null,null,null,null,null,null,null,"QYG","RJN","EAST CHESHIRE NHS TRUST",null,null,"RJN","EAST CHESHIRE NHS TRUST"]
[null,null,null,null,null,null,null,null,null,null,null,null,null,null,null,null,null,"QYG","RBQ","LIVERPOOL HEART AND CHEST HOSPITAL NHS FOUNDATION TRUST",null,null,"RBQ","LIVERPOOL HEART AND CHEST HOSPITAL NHS FOUNDATION TRUST"]
[null,null,null,null,null,null,null,null,null,null,null,null,null,null,null,null,null,"QYG","REM","LIVERPOOL UNIVERSITY HOSPITALS NHS FOUNDATION TRUST",null,null,"REM","LIVERPOOL UNIVERSITY HOSPITALS NHS FOUNDATION TRUST"]
[null,null,null,null,null,null,null,null,null,null,null,null,null,null,null,null,null,"QYG","REP","LIVERPOOL WOMEN'S NHS FOUNDATION TRUST",null,null,"REP","LIVERPOOL WOMEN'S NHS FOUNDATION TRUST"]
[null,null,null,null,null,null,null,null,null,null,null,null,null,null,null,null,null,"QYG","RBT","MID CHESHIRE HOSPITALS NHS FOUNDATION TRUST",null,null,"RBT","MID CHESHIRE HOSPITALS NHS FOUNDATION TRUST"]
[null,null,null,null,null,null,null,null,null,null,null,null,null,null,null,null,null,"QYG","RVY","SOUTHPORT AND ORMSKIRK HOSPITAL NHS TRUST",null,null,"RVY","SOUTHPORT AND ORMSKIRK HOSPITAL NHS TRUST"]
[null,null,null,null,null,null,null,null,null,null,null,null,null,null,null,null,null,"QYG","RBN","ST HELENS AND KNOWSLEY TEACHING HOSPITALS NHS TRUST",null,null,"RBN","ST HELENS AND KNOWSLEY TEACHING HOSPITALS NHS TRUST"]
[null,null,null,null,null,null,null,null,null,null,null,null,null,null,null,null,null,"QYG","REN","THE CLATTERBRIDGE CANCER CENTRE NHS FOUNDATION TRUST",null,null,"REN","THE CLATTERBRIDGE CANCER CENTRE NHS FOUNDATION TRUST"]
[null,null,null,null,null,null,null,null,null,null,null,null,null,null,null,null,null,"QYG","RET","THE WALTON CENTRE NHS FOUNDATION TRUST",null,null,"RET","THE WALTON CENTRE NHS FOUNDATION TRUST"]
[null,null,null,null,null,null,null,null,null,null,null,null,null,null,null,null,null,"QYG","RWW","WARRINGTON AND HALTON TEACHING HOSPITALS NHS FOUNDATION TRUST",null,null,"RWW","WARRINGTON AND HALTON TEACHING HOSPITALS NHS FOUNDATION TRUST"]
[null,null,null,null,null,null,null,null,null,null,null,null,null,null,null,null,null,"QYG","RBL","WIRRAL UNIVERSITY TEACHING HOSPITAL NHS FOUNDATION TRUST",null,null,"RBL","WIRRAL UNIVERSITY TEACHING HOSPITAL NHS FOUNDATION TRUST"]
[null,null,null,null,null,null,null,null,null,null,null,null,null,null,null,null,null,"IS1","NT401","ALEXANDRA HOSPITAL",null,null,"NT401","ALEXANDRA HOSPITAL"]
[null,null,null,null,null,null,null,null,null,null,null,null,null,null,null,null,null,"IS1","NYW17","ASPEN HEALTHCARE - MIDLAND EYE",null,null,"NYW17","ASPEN HEALTHCARE - MIDLAND EYE"]
[null,null,null,null,null,null,null,null,null,null,null,null,null,null,null,null,null,"IS1","NT402","BATH CLINIC",null,null,"NT402","BATH CLINIC"]
[null,null,null,null,null,null,null,null,null,null,null,null,null,null,null,null,null,"IS1","NT403","BEARDWOOD HOSPITAL",null,null,"NT403","BEARDWOOD HOSPITAL"]
[null,null,null,null,null,null,null,null,null,null,null,null,null,null,null,null,null,"IS1","NT404","BEAUMONT HOSPITAL",null,null,"NT404","BEAUMONT HOSPITAL"]
[null,null,null,null,null,null,null,null,null,null,null,null,null,null,null,null,null,"IS1","NWF01","BENENDEN HOSPITAL",null,null,"NWF01","BENENDEN HOSPITAL"]
[null,null,null,null,null,null,null,null,null,null,null,null,null,null,null,null,null,"IS1","NT405","BISHOPS WOOD HOSPITAL",null,null,"NT405","BISHOPS WOOD HOSPITAL"]
[null,null,null,null,null,null,null,null,null,null,null,null,null,null,null,null,null,"IS1","NT406","BLACKHEATH HOSPITAL",null,null,"NT406","BLACKHEATH HOSPITAL"]
[null,null,null,null,null,null,null,null,null,null,null,null,null,null,null,null,null,"IS1","NT451","CAVELL HOSPITAL",null,null,"NT451","CAVELL HOSPITAL"]
[null,null,null,null,null,null,null,null,null,null,null,null,null,null,null,null,null,"IS1","NT408","CHAUCER HOSPITAL",null,null,"NT408","CHAUCER HOSPITAL"]
[null,null,null,null,null,null,null,null,null,null,null,null,null,null,null,null,null,"IS1","NT409","CHELSFIELD PARK HOSPITAL",null,null,"NT409","CHELSFIELD PARK HOSPITAL"]
[null,null,null,null,null,null,null,null,null,null,null,null,null,null,null,null,null,"IS1","NT410","CHILTERN HOSPITAL",null,null,"NT410","CHILTERN HOSPITAL"]
[null,null,null,null,null,null,null,null,null,null,null,null,null,null,null,null,null,"IS1","NT411","CLEMENTINE CHURCHILL HOSPITAL",null,null,"NT411","CLEMENTINE CHURCHILL HOSPITAL"]
[null,null,null,null,null,null,null,null,null,null,null,null,null,null,null,null,null,"IS1","NNE","DORKING HEALTHCARE LIMITED (DHC)",null,null,"NNE","DORKING HEALTHCARE LIMITED (DHC)"]
[null,null,null,null,null,null,null,null,null,null,null,null,null,null,null,null,null,"IS1","NT412","DROITWICH SPA HOSPITAL",null,null,"NT412","DROITWICH SPA HOSPITAL"]
[null,null,null,null,null,null,null,null,null,null,null,null,null,null,null,null,null,"IS1","NT447","DUCHY HOSPITAL",null,null,"NT447","DUCHY HOSPITAL"]
[null,null,null,null,null,null,null,null,null,null,null,null,null,null,null,null,null,"IS1","NT445","EDGBASTON HOSPITAL",null,null,"NT445","EDGBASTON HOSPITAL"]
[null,null,null,null,null,null,null,null,null,null,null,null,null,null,null,null,null,"IS1","ACM","EYE CARE MEDICAL LTD",null,null,"ACM","EYE CARE MEDICAL LTD"]
[null,null,null,null,null,null,null,null,null,null,null,null,null,null,null,null,null,"IS1","NVG01","FAIRFIELD HOSPITAL",null,null,"NVG01","FAIRFIELD HOSPITAL"]
[null,null,null,null,null,null,null,null,null,null,null,null,null,null,null,null,null,"IS1","NT417","GORING HALL HOSPITAL",null,null,"NT417","GORING HALL HOSPITAL"]
[null,null,null,null,null,null,null,null,null,null,null,null,null,null,null,null,null,"IS1","NT418","HAMPSHIRE CLINIC",null,null,"NT418","HAMPSHIRE CLINIC"]
[null,null,null,null,null,null,null,null,null,null,null,null,null,null,null,null,null,"IS1","NT419","HARBOUR HOSPITAL",null,null,"NT419","HARBOUR HOSPITAL"]
[null,null,null,null,null,null,null,null,null,null,null,null,null,null,null,null,null,"IS1","NQT","HCRG CARE LTD",null,null,"NQT","HCRG CARE LTD"]
[null,null,null,null,null,null,null,null,null,null,null,null,null,null,null,null,null,"IS1","NDA","HCRG CARE SERVICES LTD",null,null,"NDA","HCRG CARE SERVICES LTD"]
[null,null,null,null,null,null,null,null,null,null,null,null,null,null,null,null,null,"IS1","NT416","HENDON HOSPITAL",null,null,"NT416","HENDON HOSPITAL"]
[null,null,null,null,null,null,null,null,null,null,null,null,null,null,null,null,null,"IS1","NT420","HIGHFIELD HOSPITAL",null,null,"NT420","HIGHFIELD HOSPITAL"]
[null,null,null,null,null,null,null,null,null,null,null,null,null,null,null,null,null,"IS1","NXM","HORDER HEALTHCARE",null,null,"NXM","HORDER HEALTHCARE"]
[null,null,null,null,null,null,null,null,null,null,null,null,null,null,null,null,null,"IS1","NT448","HUDDERSFIELD HOSPITAL",null,null,"NT448","HUDDERSFIELD HOSPITAL"]
[null,null,null,null,null,null,null,null,null,null,null,null,null,null,null,null,null,"IS1","NV1","INHEALTH LIMITED",null,null,"NV1","INHEALTH LIMITED"]
[null,null,null,null,null,null,null,null,null,null,null,null,null,null,null,null,null,"IS1","ADP","KIMS HOSPITAL",null,null,"ADP","KIMS HOSPITAL"]
[null,null,null,null,null,null,null,null,null,null,null,null,null,null,null,null,null,"IS1","NT421","KINGS OAK HOSPITAL",null,null,"NT421","KINGS OAK HOSPITAL"]
[null,null,null,null,null,null,null,null,null,null,null,null,null,null,null,null,null,"IS1","NT449","LANCASTER HOSPITAL",null,null,"NT449","LANCASTER HOSPITAL"]
[null,null,null,null,null,null,null,null,null,null,null,null,null,null,null,null,null,"IS1","NT450","LINCOLN HOSPITAL",null,null,"NT450","LINCOLN HOSPITAL"]
[null,null,null,null,null,null,null,null,null,null,null,null,null,null,null,null,null,"IS1","NT422","LONDON INDEPENDENT HOSPITAL",null,null,"NT422","LONDON INDEPENDENT HOSPITAL"]
[null,null,null,null,null,null,null,null,null,null,null,null,null,null,null,null,null,"IS1","NT423","MANOR HOSPITAL",null,null,"NT423","MANOR HOSPITAL"]
[null,null,null,null,null,null,null,null,null,null,null,null,null,null,null,null,null,"IS1","NT424","MERIDEN HOSPITAL",null,null,"NT424","MERIDEN HOSPITAL"]
[null,null,null,null,null,null,null,null,null,null,null,null,null,null,null,null,null,"IS1","NT455","MOUNT ALVERNIA HOSPITAL",null,null,"NT455","MOUNT ALVERNIA HOSPITAL"]
[null,null,null,null,null,null,null,null,null,null,null,null,null,null,null,null,null,"IS1","ACG09","NEWMEDICA - BARLBOROUGH",null,null,"ACG09","NEWMEDICA - BARLBOROUGH"]
[null,null,null,null,null,null,null,null,null,null,null,null,null,null,null,null,null,"IS1","ACG20","NEWMEDICA - BRISTOL - LITFIELD HOUSE",null,null,"ACG20","NEWMEDICA - BRISTOL - LITFIELD HOUSE"]
[null,null,null,null,null,null,null,null,null,null,null,null,null,null,null,null,null,"IS1","Q1S8W","NEWMEDICA - BURY ST EDMUNDS",null,null,"Q1S8W","NEWMEDICA - BURY ST EDMUNDS"]
[null,null,null,null,null,null,null,null,null,null,null,null,null,null,null,null,null,"IS1","ACG36","NEWMEDICA - EXETER - GLEN HOUSE",null,null,"ACG36","NEWMEDICA - EXETER - GLEN HOUSE"]
[null,null,null,null,null,null,null,null,null,null,null,null,null,null,null,null,null,"IS1","ACG41","NEWMEDICA - FROME",null,null,"ACG41","NEWMEDICA - FROME"]
[null,null,null,null,null,null,null,null,null,null,null,null,null,null,null,null,null,"IS1","ACG13","NEWMEDICA - GLOUCESTER (ASPEN MEDICAL CENTRE)",null,null,"ACG13","NEWMEDICA - GLOUCESTER (ASPEN MEDICAL CENTRE)"]
[null,null,null,null,null,null,null,null,null,null,null,null,null,null,null,null,null,"IS1","L0D9W","NEWMEDICA - GLOUCESTER (BRIGHOUSE COURT)",null,null,"L0D9W","NEWMEDICA - GLOUCESTER (BRIGHOUSE COURT)"]
[null,null,null,null,null,null,null,null,null,null,null,null,null,null,null,null,null,"IS1","ACG37","NEWMEDICA - IPSWICH",null,null,"ACG37","NEWMEDICA - IPSWICH"]
[null,null,null,null,null,null,null,null,null,null,null,null,null,null,null,null,null,"IS1","ACG38","NEWMEDICA - LANGFORD",null,null,"ACG38","NEWMEDICA - LANGFORD"]
[null,null,null,null,null,null,null,null,null,null,null,null,null,null,null,null,null,"IS1","N6Z0R","NEWMEDICA - LINCOLN",null,null,"N6Z0R","NEWMEDICA - LINCOLN"]
[null,null,null,null,null,null,null,null,null,null,null,null,null,null,null,null,null,"IS1","ACG26","NEWMEDICA - NORTH DERBYSHIRE - MIDLAND COURT",null,null,"ACG26","NEWMEDICA - NORTH DERBYSHIRE - MIDLAND COURT"]
[null,null,null,null,null,null,null,null,null,null,null,null,null,null,null,null,null,"IS1","M4C5R","NEWMEDICA - NORTHAMPTON",null,null,"M4C5R","NEWMEDICA - NORTHAMPTON"]
[null,null,null,null,null,null,null,null,null,null,null,null,null,null,null,null,null,"IS1","B5M7B","NEWMEDICA - NORWICH",null,null,"B5M7B","NEWMEDICA - NORWICH"]
[null,null,null,null,null,null,null,null,null,null,null,null,null,null,null,null,null,"IS1","P5Y6K","NEWMEDICA - SHREWSBURY",null,null,"P5Y6K","NEWMEDICA - SHREWSBURY"]
[null,null,null,null,null,null,null,null,null,null,null,null,null,null,null,null,null,"IS1","ACG39","NEWMEDICA - SWINDON",null,null,"ACG39","NEWMEDICA - SWINDON"]
[null,null,null,null,null,null,null,null,null,null,null,null,null,null,null,null,null,"IS1","ACG24","NEWMEDICA - TEESSIDE - NORTH ORMESBY",null,null,"ACG24","NEWMEDICA - TEESSIDE - NORTH ORMESBY"]
[null,null,null,null,null,null,null,null,null,null,null,null,null,null,null,null,null,"IS1","ACG40","NEWMEDICA - WAKEFIELD",null,null,"ACG40","NEWMEDICA - WAKEFIELD"]
[null,null,null,null,null,null,null,null,null,null,null,null,null,null,null,null,null,"IS1","ACG30","NEWMEDICA - WORKSOP - DUKERIES",null,null,"ACG30","NEWMEDICA - WORKSOP - DUKERIES"]
[null,null,null,null,null,null,null,null,null,null,null,null,null,null,null,null,null,"IS1","ACG19","NEWMEDICA COMMUNITY OPHTHALMOLOGY - LEEDS",null,null,"ACG19","NEWMEDICA COMMUNITY OPHTHALMOLOGY - LEEDS"]
[null,null,null,null,null,null,null,null,null,null,null,null,null,null,null,null,null,"IS1","ACG07","NEWMEDICA COMMUNITY OPHTHALMOLOGY - LEICESTERSHIRE - LEICESTER (STONEYGATE EYE HOSPITAL)",null,null,"ACG07","NEWMEDICA COMMUNITY OPHTHALMOLOGY - LEICESTERSHIRE - LEICESTER (STONEYGATE EYE HOSPITAL)"]
[null,null,null,null,null,null,null,null,null,null,null,null,null,null,null,null,null,"IS1","ACG12","NEWMEDICA COMMUNITY OPHTHALMOLOGY - NORTH EAST LINCOLNSHIRE - GRIMSBY",null,null,"ACG12","NEWMEDICA COMMUNITY OPHTHALMOLOGY - NORTH EAST LINCOLNSHIRE - GRIMSBY"]
[null,null,null,null,null,null,null,null,null,null,null,null,null,null,null,null,null,"IS1","ACG08","NEWMEDICA OPHTHALMOLOGY - NUNEATON - CAMP HILL - GP LED HEALTH CENTRE",null,null,"ACG08","NEWMEDICA OPHTHALMOLOGY - NUNEATON - CAMP HILL - GP LED HEALTH CENTRE"]
[null,null,null,null,null,null,null,null,null,null,null,null,null,null,null,null,null,"IS1","NT2","NUFFIELD HEALTH",null,null,"NT2","NUFFIELD HEALTH"]
[null,null,null,null,null,null,null,null,null,null,null,null,null,null,null,null,null,"IS1","U7W9J","OPTIMAX CLINICS LIMITED",null,null,"U7W9J","OPTIMAX CLINICS LIMITED"]
[null,null,null,null,null,null,null,null,null,null,null,null,null,null,null,null,null,"IS1","NT427","PARK HOSPITAL",null,null,"NT427","PARK HOSPITAL"]
[null,null,null,null,null,null,null,null,null,null,null,null,null,null,null,null,null,"IS1","NMN","PENINSULA HEALTH LLP",null,null,"NMN","PENINSULA HEALTH LLP"]
[null,null,null,null,null,null,null,null,null,null,null,null,null,null,null,null,null,"IS1","NEQ","PHOENIX HEALTH SOLUTIONS LIMITED HQ",null,null,"NEQ","PHOENIX HEALTH SOLUTIONS LIMITED HQ"]
[null,null,null,null,null,null,null,null,null,null,null,null,null,null,null,null,null,"IS1","NEY","PIONEER HEALTHCARE LIMITED",null,null,"NEY","PIONEER HEALTHCARE LIMITED"]
[null,null,null,null,null,null,null,null,null,null,null,null,null,null,null,null,null,"IS1","NTP13","PRACTICE PLUS GROUP HOSPITAL - BARLBOROUGH",null,null,"NTP13","PRACTICE PLUS GROUP HOSPITAL - BARLBOROUGH"]
[null,null,null,null,null,null,null,null,null,null,null,null,null,null,null,null,null,"IS1","NTPH2","PRACTICE PLUS GROUP HOSPITAL - EMERSONS GREEN",null,null,"NTPH2","PRACTICE PLUS GROUP HOSPITAL - EMERSONS GREEN"]
[null,null,null,null,null,null,null,null,null,null,null,null,null,null,null,null,null,"IS1","NTP15","PRACTICE PLUS GROUP HOSPITAL - ILFORD",null,null,"NTP15","PRACTICE PLUS GROUP HOSPITAL - ILFORD"]
[null,null,null,null,null,null,null,null,null,null,null,null,null,null,null,null,null,"IS1","NTPH5","PRACTICE PLUS GROUP HOSPITAL - PLYMOUTH",null,null,"NTPH5","PRACTICE PLUS GROUP HOSPITAL - PLYMOUTH"]
[null,null,null,null,null,null,null,null,null,null,null,null,null,null,null,null,null,"IS1","NTPH1","PRACTICE PLUS GROUP HOSPITAL - SHEPTON MALLET",null,null,"NTPH1","PRACTICE PLUS GROUP HOSPITAL - SHEPTON MALLET"]
[null,null,null,null,null,null,null,null,null,null,null,null,null,null,null,null,null,"IS1","NTP11","PRACTICE PLUS GROUP HOSPITAL - SOUTHAMPTON",null,null,"NTP11","PRACTICE PLUS GROUP HOSPITAL - SOUTHAMPTON"]
[null,null,null,null,null,null,null,null,null,null,null,null,null,null,null,null,null,"IS1","NTPAE","PRACTICE PLUS GROUP OPHTHALMOLOGY - NORTH WEST",null,null,"NTPAE","PRACTICE PLUS GROUP OPHTHALMOLOGY - NORTH WEST"]
[null,null,null,null,null,null,null,null,null,null,null,null,null,null,null,null,null,"IS1","NTPAD","PRACTICE PLUS GROUP SURGICAL CENTRE - ST MARYS PORTSMOUTH",null,null,"NTPAD","PRACTICE PLUS GROUP SURGICAL CENTRE - ST MARYS PORTSMOUTH"]
[null,null,null,null,null,null,null,null,null,null,null,null,null,null,null,null,null,"IS1","NT428","PRINCESS MARGARET HOSPITAL",null,null,"NT428","PRINCESS MARGARET HOSPITAL"]
[null,null,null,null,null,null,null,null,null,null,null,null,null,null,null,null,null,"IS1","NT429","PRIORY HOSPITAL",null,null,"NT429","PRIORY HOSPITAL"]
[null,null,null,null,null,null,null,null,null,null,null,null,null,null,null,null,null,"IS1","NAM","PROBUS SURGERY LIMITED",null,null,"NAM","PROBUS SURGERY LIMITED"]
[null,null,null,null,null,null,null,null,null,null,null,null,null,null,null,null,null,"IS1","NVC","RAMSAY HEALTHCARE UK OPERATIONS LIMITED",null,null,"NVC","RAMSAY HEALTHCARE UK OPERATIONS LIMITED"]
[null,null,null,null,null,null,null,null,null,null,null,null,null,null,null,null,null,"IS1","NT430","RIDGEWAY HOSPITAL",null,null,"NT430","RIDGEWAY HOSPITAL"]
[null,null,null,null,null,null,null,null,null,null,null,null,null,null,null,null,null,"IS1","NT431","RUNNYMEDE HOSPITAL",null,null,"NT431","RUNNYMEDE HOSPITAL"]
[null,null,null,null,null,null,null,null,null,null,null,null,null,null,null,null,null,"IS1","NT433","SARUM ROAD HOSPITAL",null,null,"NT433","SARUM ROAD HOSPITAL"]
[null,null,null,null,null,null,null,null,null,null,null,null,null,null,null,null,null,"IS1","NT434","SAXON CLINIC",null,null,"NT434","SAXON CLINIC"]
[null,null,null,null,null,null,null,null,null,null,null,null,null,null,null,null,null,"IS1","NT435","SHELBURNE HOSPITAL",null,null,"NT435","SHELBURNE HOSPITAL"]
[null,null,null,null,null,null,null,null,null,null,null,null,null,null,null,null,null,"IS1","NT436","SHIRLEY OAKS HOSPITAL",null,null,"NT436","SHIRLEY OAKS HOSPITAL"]
[null,null,null,null,null,null,null,null,null,null,null,null,null,null,null,null,null,"IS1","NT437","SLOANE HOSPITAL",null,null,"NT437","SLOANE HOSPITAL"]
[null,null,null,null,null,null,null,null,null,null,null,null,null,null,null,null,null,"IS1","NT490","SOUTHEND PRIVATE HOSPITAL",null,null,"NT490","SOUTHEND PRIVATE HOSPITAL"]
[null,null,null,null,null,null,null,null,null,null,null,null,null,null,null,null,null,"IS1","NT3","SPIRE HEALTHCARE",null,null,"NT3","SPIRE HEALTHCARE"]
[null,null,null,null,null,null,null,null,null,null,null,null,null,null,null,null,null,"IS1","NT446","ST EDMUNDS HOSPITAL",null,null,"NT446","ST EDMUNDS HOSPITAL"]
[null,null,null,null,null,null,null,null,null,null,null,null,null,null,null,null,null,"IS1","AAH","TETBURY HOSPITAL TRUST LTD",null,null,"AAH","TETBURY HOSPITAL TRUST LTD"]
[null,null,null,null,null,null,null,null,null,null,null,null,null,null,null,null,null,"IS1","NT440","THORNBURY HOSPITAL",null,null,"NT440","THORNBURY HOSPITAL"]
[null,null,null,null,null,null,null,null,null,null,null,null,null,null,null,null,null,"IS1","NT441","THREE SHIRES HOSPITAL",null,null,"NT441","THREE SHIRES HOSPITAL"]
[null,null,null,null,null,null,null,null,null,null,null,null,null,null,null,null,null,"IS1","D1V8O","ULTRALASE EYE CLINICS LIMITED",null,null,"D1V8O","ULTRALASE EYE CLINICS LIMITED"]
[null,null,null,null,null,null,null,null,null,null,null,null,null,null,null,null,null,"IS1","NT443","WINTERBOURNE HOSPITAL",null,null,"NT443","WINTERBOURNE HOSPITAL"]
[null,null,null,null,null,null,null,null,null,null,null,null,null,null,null,null,null,"IS1","NT457","WOODLANDS HOSPITAL",null,null,"NT457","WOODLANDS HOSPITAL"]